{"text_format":"3","workbook":"xlsx","n_sheets":2,"sheets":["COVER","MANYANDENI-BOQ"],"not_rendered":{"images":1,"external_links":1,"defined_names":1},"read":"whole","date_system":"1900"}

{"sheet":"COVER","index":0,"n_rows":45,"n_cols":4,"rows_kept":45,"merged":[[0,0,0,3],[1,0,1,3],[10,0,10,3],[11,0,11,3],[13,0,13,3],[14,0,14,3],[16,0,16,3],[17,0,17,3],[18,0,18,1],[18,2,18,3],[19,0,19,1],[19,2,19,3],[20,0,20,1],[20,2,20,3],[21,0,21,1],[21,2,21,3],[22,0,22,1],[22,2,22,3],[23,2,23,3],[24,2,24,3],[25,0,25,1],[25,2,25,3],[26,0,26,1],[26,2,26,3],[30,2,30,3],[31,2,31,3],[32,2,32,3],[33,2,33,3],[34,2,34,3],[37,0,37,3]]}
["PROVINCIAL ADMINISTRATION OF KWAZULU-NATAL"]
["DEPARTMENT OF PUBLIC WORKS"]
{"$rows_empty":8}
["BILLS OF QUANTITIES"]
[{"$f":"+'[1]Cover Page-Section 1 of 2'!A12:D12","v":"with GCC for Construction Works - Second Edition 2010"}]
[]
["CONTRACTUAL SECTION"]
["ONE VOLUME APPROACH"]
[]
[{"$f":"+'[1]Master Data'!E18","v":"PHASE 14: STORM DAMAGED PROGRAMME: REPAIRS AND RENOVATIONS TO STORM DAMAGED SCHOOLS THROUGHOUT THE PROVINCE OF KWAZULU-NATAL: NORTH COAST REGION: CLUSTER 148: MANYANDENI PRIMARY SCHOOL. OPEN BID            "}]
[]
[{"$f":"+'[1]Cover Page-Section 1 of 2'!A20","v":"Engineer/Principal Agent"},null,{"$f":"+'[1]Cover Page-Section 1 of 2'!C20:D20","v":"Electrical Engineer"}]
[{"$f":"+'[1]Cover Page-Section 1 of 2'!A21:B21","v":"Naidu Consulting (Pty) Ltd        "},null,{"$f":"+'[1]Cover Page-Section 1 of 2'!C21:D21","v":"DNA Engineers & Project Managers"}]
[{"$f":"+'[1]Cover Page-Section 1 of 2'!A22:B22","v":"P.O Box 2796"},null,{"$f":"+'[1]Cover Page-Section 1 of 2'!C22:D22","v":"641 Peter Mokaba Rd"}]
[{"$f":"+'[1]Cover Page-Section 1 of 2'!A23:B23","v":"Westville"},null,{"$f":"+'[1]Cover Page-Section 1 of 2'!C23:D23","v":"Morningside"}]
[{"$f":"+'[1]Cover Page-Section 1 of 2'!A24:B24","v":"Durban"},null,"Durban"]
[{"$f":"+'[1]Cover Page-Section 1 of 2'!A25:B25","v":3635},null,{"$f":"+'[1]Cover Page-Section 1 of 2'!C25:D25","v":4091}]
[{"$f":"+'[1]Cover Page-Section 1 of 2'!A26","v":"031 - 265 6007 - Tel Number"},null,{"$f":"+'[1]Cover Page-Section 1 of 2'!C26:D26","v":"031 - 207 1576 - Tel Number"}]
[{"$f":"+'[1]Cover Page-Section 1 of 2'!A27","v":"031 - 265 6011 - Fax Number"},null,{"$f":"+'[1]Cover Page-Section 1 of 2'!C27:D27","v":"086 - 670 8703 - Fax Number"}]
[{"$f":"+'[1]Cover Page-Section 1 of 2'!A28:B28","v":"Sherwyn.Bhana@naiduconsulting.com"},null,{"$f":"+'[1]Cover Page-Section 1 of 2'!C28:D28","v":"info@dnaengineers.co.za "}]
[]
[]
[{"$f":"+'[1]Cover Page-Section 1 of 2'!A30","v":"Employer:"},null,{"$f":"+'[1]Cover Page-Section 1 of 2'!C30:D30","v":"Region:"}]
[{"$f":"+'[1]Cover Page-Section 1 of 2'!A31","v":"Head: Public Works"},null,{"$f":"+'[1]Cover Page-Section 1 of 2'!C31:D31","v":"Head Public Works: Operations"}]
[{"$f":"+'[1]Cover Page-Section 1 of 2'!A32","v":"KZN Department of Public Works"},null,{"$f":"+'[1]Cover Page-Section 1 of 2'!C32:D32","v":"KZN Department of Public Works"}]
[{"$f":"+'[1]Cover Page-Section 1 of 2'!A33","v":"Private Bag X 9041"},null,{"$f":"+'[1]Cover Page-Section 1 of 2'!C33:D33","v":"Private Bag X 9041"}]
[{"$f":"+'[1]Cover Page-Section 1 of 2'!A34","v":"PIETERMARITZBURG"},null,{"$f":"+'[1]Cover Page-Section 1 of 2'!C34:D34","v":"Pietermaritzburg"}]
[{"$f":"+'[1]Cover Page-Section 1 of 2'!A35","v":3200},null,{"$f":"+'[1]Cover Page-Section 1 of 2'!C35:D35","v":"3200"}]
[{"$f":"+'[1]Cover Page-Section 1 of 2'!A36","v":"Tel Number:     033 - 355 5569"},null,{"$f":"+'[1]Cover Page 2'!C32","v":"Tel Number:"},{"$f":"+'[1]Cover Page-Section 1 of 2'!D36","v":"033 - 355 5569"}]
[{"$f":"+'[1]Cover Page-Section 1 of 2'!A37","v":"Fax Number:    N/A"},null,{"$f":"+'[1]Cover Page 2'!C33","v":"Fax Number:"},{"$f":"+'[1]Cover Page-Section 1 of 2'!D37","v":"N/A"}]
[]
[{"$f":"+'[1]Cover Page-Section 1 of 2'!A39","v":"Tender Number:      ZNTU04219W"}," ","Project Code:",{"$f":"+'[1]Master Data'!WimsNo","v":"063379"}]
[{"$f":"+'[1]Cover Page-Section 1 of 2'!A40","v":"CIDB Grading:        6GB or higher"}," ",{"$f":"+'[1]Cover Page-Section 1 of 2'!C40","v":"Document Date:"},"2023-09-05"]
[{"$f":"+'[1]Cover Page-Section 1 of 2'!A41","v":"ECDP Number:       N/A"}]
["Advertisement Date: 4 August 2023"]
["Contracting Party: "]
[{"$f":"+'[1]Cover Page-Section 1 of 2'!A44:D44","v":"CIDB Registration number:"}]
[{"$f":"+'[1]Cover Page-Section 1 of 2'!A45:D45","v":"Central Suppliers Database Registration Number: "}]

{"sheet":"MANYANDENI-BOQ","index":1,"n_rows":2258,"n_cols":9,"rows_kept":2258,"merged":[[0,0,1,8],[2,0,2,2],[2,3,2,4],[2,5,2,6],[2,7,2,8],[3,0,4,2],[3,3,4,4],[3,5,4,6],[3,7,4,8],[5,0,5,8]]}
["PHASE 14: STORM DAMAGED PROGRAMME: REPAIRS AND RENOVATIONS TO STORM DAMAGED SCHOOLS THROUGHOUT THE PROVINCE OF KWAZULU-NATAL: NORTH COAST REGION: CLUSTER 148: MANYANDENI PRIMARY SCHOOL. OPEN BID    "]
[]
["SCHOOL NAME",null,null,"MANYANDENI  PRIMARY SCHOOL",null,"WIMS",null,"CONTRACT TYPE"]
["BIDDING ENTITY:",{"$nulls":4},"063379",null,"OPEN BID"]
[]
["BIDDERS TO NOTE THAT ONLY THE RATE COLUMN TO BE FILLED "]
[]
["SECTION","BILL","PAGE NO","ITEM NO","DESCRIPTION","UNIT","QUANTITY","RATE","AMOUNT"]
[1,1,1,null,"SECTION No. 1","H1",0]
[]
[1,1,1,null,"BILL No. 1 : PRELIMINARIES AND GENERAL","H1",0]
[]
[1,1,1,null,"(Applicable to all sections of the Works)",null,0]
[]
[1,1,1,null,"(CPAP WORK GROUP NO. 190 UNLESS OTHERWISE STATED)","H2",0]
[]
[1,1,1,null,"(Applicable to all sections of the Works)",null,0]
[]
[1,1,1,null,"NOTES:","H2",0]
[]
[1,1,1,null,"(i) The agreement is to be the General Conditions of Contract for Works of Civil Engineering Construction (2010) (Second Edition) , publishedby the S. A. Institution Of Civil Engineering.",null,0]
[]
[1,1,1,null,"(ii) The Preliminaries are to be the Construction and management requirements for works contracts - Part 1: General engineering and construction works (SANS 1921-1: 2004 Edition 1) prepared by Standards South Africa and shall be deemed to be incorporated herein.",null,0]
[]
[1,1,1,null,"(iii) Tenderers are referred to the above mentioned documents for the full intent and meaning of each clause thereof (hereinafter referred to by heading and clause number only) for which such allowance must be made as may be considered necessary.",null,0]
[]
[1,1,1,null,"(iv)Where standard clauses or alternatives are not entirely applicable to this contract such modifications, corrections or supplements as will apply are given under each relevant clause heading.",null,0]
[]
[1,1,1,null,"(v) Where any item is not relevant to this specific contract such item is marked N/A (signifying \"not  applicable\").",null,0]
[]
[1,1,2,null,"(vi) Adjustment of the preliminaries:  each item priced, is to be allocated to one or more of  thethree categories, where \"F\" denotes a fixed amount  (amount not to be varied), \"V\" denotes an amount  variable in proportion to value and \"T\" denotes an  amount in proportion to time.",null,0]
[]
[1,1,2,null,"(vii) Time (T) related Preliminaries will only be adjusted for omissions or additions, issued by the Employer, or delays caused by the Employer, for which variation and extension of time has been granted. See Contract Data.",null,0]
[]
[1,1,2,null,"SECTION A: GENERAL CONDITIONS OF CONTRACT","H2",0]
[]
[1,1,2,1,"A1. General (Clause 1)  F:................... V:.................... T:....................","Item",1,null,{"$f":"G37*H37","v":{"v":0,"d":"0.00"}}]
[{"$nulls":4},""]
[1,1,2,2,"A2.Basis of the Contract (Clause 2)  F:................... V:.................... T:....................","Item",0]
[{"$nulls":4},""]
[1,1,2,3,"A3.Engineer (clause 3) F:................... V:.................... T:....................","Item",0]
[{"$nulls":4},""]
[1,1,2,4,"A4.Contractor's General Obligation (clause 4) F:................... V:.................... T:....................","Item",0]
[{"$nulls":4},""]
[1,1,2,5,"A5.Time and Related Matters (clause 5) - As referred to in the Contract Data under Special Time and Related Matters (clause 5) - As referred to in the Contract Data under Special Condition of Contract. The Contract Period shall be deemed to include all Non - Working Days, Special Non - Working Days and the year-end Builders Annual Industry Holiday Periods. F:................... V:.................... T:...................."]
[{"$nulls":4},""]
[1,1,3,6,"A6.Payment and Related Matters (clause 6) F:................... V:.................... T:....................","Item",0]
[{"$nulls":4},""]
[1,1,3,7,"A7. Quality and Related Matters (clause 7) F:................... V:.................... T:....................","Item",0]
[{"$nulls":4},""]
[1,1,3,8,"A8.Risk and Related Matters (clause 8) F:................... V:.................... T:....................","Item",0]
[{"$nulls":4},""]
[1,1,3,9,"A9.Termination of Contract (clause 9) F:................... V:.................... T:....................","Item",0]
[{"$nulls":4},""]
[1,1,3,10,"A10.Claims and Disputes (clause 10) F:................... V:.................... T:....................","Item",0]
[]
[1,1,3,null,"SECTION B: SANS 1921-1-2004 (Edition 1): CONSTRUCTION AND MANAGEMENT FOR THE WORKS: PART 1  Refer to the SCOPE OF WORK for detail requirements","H2",0]
[]
[1,1,3,11,"B1.Scope  F................. V:.................... T:....................","Item",0]
[{"$nulls":4},""]
[1,1,3,12,"B2.Normative references  F:................... V:.................... T:....................","Item",0]
[{"$nulls":4},""]
[1,1,3,13,"B3.Definitions  F:................... V:.................... T:....................","Item",0]
[{"$nulls":4},""]
[1,1,4,14,"B4.Requirements for construction and management  F:................... V:.................... T:....................","Item",0]
[{"$nulls":4},""]
[1,1,4,15,"B4.1General F:................... V:.................... T:....................","Item",0]
[{"$nulls":4},""]
[1,1,4,16,"B4.2Responsibilities for design and construction  F:................... V:.................... T:....................","Item",0]
[{"$nulls":4},""]
[1,1,4,17,"B4.3Planning, programme and method statements  F:................... V:.................... T:....................","Item",0]
[{"$nulls":4},""]
[1,1,4,18,"B4.4Quality assurance  F:................... V:.................... T:....................","Item",0]
[{"$nulls":4},""]
[1,1,4,19,"B4.5Setting Out  F:................... V:.................... T:....................","Item",0]
[{"$nulls":4},""]
[1,1,4,20,"B4.6Management and disposal of Water  F:................... V:.................... T:....................","Item",0]
[{"$nulls":4},""]
[1,1,4,21,"B4.7Blasting  F:................... V:.................... T:....................","Item",0]
[{"$nulls":4},""]
[1,1,4,22,"B4.8Works adjacent to services and structures  F:................... V:.................... T:....................","Item",0]
[{"$nulls":4},""]
[1,1,4,23,"B4.9Management of the Works and site  F:................... V:.................... T:....................","Item",0]
[{"$nulls":4},""]
[1,1,4,24,"B4.10Earthworks  F:................... V:.................... T:....................","Item",0]
[{"$nulls":4},""]
[1,1,5,25,"B4.11Testing  F:................... V:.................... T:....................","Item",0]
[{"$nulls":4},""]
[1,1,5,26,"B4.12Materials, samples and fabrication drawings  F:................... V:.................... T:....................","Item",0]
[{"$nulls":4},""]
[1,1,5,27,"B4.13Equipment  F:................... V:.................... T:....................","Item",0]
[{"$nulls":4},""]
[1,1,5,28,"B4.14Site Establishment  F:................... V:.................... T:....................","Item",0]
[{"$nulls":4},""]
[1,1,5,29,"B4.15Survey Control  F:................... V:.................... T:....................","Item",0]
[{"$nulls":4},""]
[1,1,5,30,"B4.16Temporary Works  F:................... V:.................... T:....................","Item",0]
[{"$nulls":4},""]
[1,1,5,31,"B4.17Existing Services  F:................... V:.................... T:....................","Item",0]
[{"$nulls":4},""]
[1,1,5,32,"B4.18Health and Safety  F:................... V:.................... T:....................","Item",0]
[{"$nulls":4},""]
[1,1,5,33,"B4.19Environmental Requirements  F:................... V:.................... T:....................","Item",0]
[{"$nulls":4},""]
[1,1,5,34,"B4.20Alterations, additions, extensions and modifications to existing works  F:................... V:.................... T:....................","Item",0]
[{"$nulls":4},""]
[1,1,6,35,"B4.21Inspection of adjoining structures, services, buildings and property  F:................... V:.................... T:....................","Item",0]
[{"$nulls":4},""]
[1,1,6,36,"B4.22Attendance on nominated and selected subcontractors  F:................... V:.................... T:....................","Item",0]
[]
[]
[1,1,6,null,"SECTION C: SCOPE OF WORK in accordance with SANS 10403","H2",0]
[]
[1,1,6,null,"'(The reference to Clauses refer to Table B.1 of SANS 1921-1:2004)",null,0]
[]
[1,1,6,37,"C1.Certification by recognised bodies - CLAUSE 4.4  F................. V:.................... T:....................","Item",0]
[{"$nulls":4},""]
[1,1,6,38,"C2.Agrément certificates - CLAUSE 4.5  F................. V:.................... T:....................","N/A",0]
[{"$nulls":4},""]
[1,1,6,39,"C3.Other services and facilities - CLAUSE 4.8  F................. V:.................... T:....................","Item",0]
[{"$nulls":4},""]
[1,1,6,40,"C4.Recording of weather - CLAUSE 5.2  F................. V:.................... T:....................","Item",0]
[{"$nulls":4},""]
[1,1,6,41,"C5.Management meetings - CLAUSE 5.3  F................. V:.................... T:....................","Item",0]
[{"$nulls":4},""]
[1,1,6,42,"C6.Daily records CLAUSE 5.6  F................. V:.................... T:....................","Item",0]
[{"$nulls":4},""]
[1,1,7,43,"C7.Bond and guarantees - CLAUSE 5.7  F................. V:.................... T:....................","Item",0]
[{"$nulls":4},""]
[1,1,7,44,"C8.Permits - CLAUSE 5.9  F................. V:.................... T:....................","Item",0]
[{"$nulls":4},""]
[1,1,7,45,"C9.Proof of compliance with the law- CLAUSE 5.10  F................. V:.................... T:....................","Item",0]
[]
[]
[1,1,7,null,"SECTION D: SPECIFICATION DATA ASSOCIATED WITH SANS 1921-1:2004 (Table A.1)","H2",0]
[]
[1,1,7,46,"D1.Requirements for drawings, information and calculations for which the contractor is responsible CLAUSE 4.1.7  F................. V:.................... T:....................","Item",0]
[]
[1,1,7,47,"D2.The responsibility strategy assigned to the contractor for the works  CLAUSE 4.2.1  F................. V:.................... T:....................","Item",0]
[]
[1,1,7,48,"D3.The planning, programme and method statements - CLAUSE 4.3  F................. V:.................... T:....................","Item",0]
[]
[1,1,7,49,"D4.Samples of materials, workmanship and finishes  - CLAUSE 4.12.1  F................. V:.................... T:....................","Item",0]
[]
[1,1,8,50,"D5.Fabrication drawings that the contractor is to provide and deliver to the employer  - CLAUSE  4.12.2  F................. V:.................... T:....................","Item",0]
[]
[1,1,8,51,"D6.Office for the foreman CLAUSE 4.14.3  F................. V:.................... T:....................","Item",0]
[{"$nulls":4},""]
[1,1,8,52,"D7.Telephone -  CLAUSE 4.14.3  F................. V:.................... T:....................","Item",0]
[{"$nulls":4},""]
[1,1,8,53,"D8.Office for inspector of works  -  CLAUSE 4.14.3  F................. V:.................... T:....................","Item",0]
[]
[1,1,8,54,"D9.Telephone in office for inspector of works  -  CLAUSE 4.14.3  F................. V:.................... T:....................","Item",0]
[]
[1,1,8,55,"D10.Sheds  -  CLAUSE 4.14.3  F................. V:.................... T:....................","Item",0]
[]
[1,1,8,56,"D11.Provision and erection of signboards -  CLAUSE 4.14.6  F................. V:.................... T:....................","Item",0]
[]
[1,1,8,57,"D12.Termination, diversion or maintenance of existing services - CLAUSE4.17.1  F................. V:.................... T:....................","Item",0]
[]
[1,1,8,58,"D13.Services which are known to exist - CLAUSE 4.17.3F................. V:.................... T:....................","Item",0]
[]
[1,1,9,59,"D14.Detection apparatus - CLAUSE 4.17.4  F................. V:.................... T:....................","Item",0]
[]
[1,1,9,60,"D15.Additional health and safety requirements - CLAUSE 4.18  F................. V:.................... T:....................","Item",0]
[]
[1,1,10,null,"SECTION E: SPECIFIC PRELIMINARIES","H2",0]
[]
[1,1,10,null,"Section E contains Specific Preliminary items which apply to this contract except where \"N/A\" (Not Applicable) appears against the item","H3",0]
[]
[1,1,10,null,"E1. PROPRIETARY BRANDED PRODUCTS","H2",0]
[]
[1,1,10,61,"The contractor shall take delivery of, handle, store, use apply and/or fix all proprietary branded products in strict accordance with the manufacturers' instruction after consultation with the manufacturer's authorised representative.  F:......................... V:........................ T:.........................","Item",0]
[]
[1,1,10,null,"E2. OVERTIME","H2",0]
[]
[1,1,10,62,"Should overtime be required to be worked for any reasonwhatsoever, the costs of such overtime are to be borne by the Contractor unless the Engineer/Principal Agent has specifically authorised in writing, prior to the execution thereof, that costs for such overtime are to be borne by the Employer.F:......................... V:........................ T:........................","Item",0]
[]
[1,1,10,null,"E3. AS BUILT DRAWINGS","H2",0]
[]
[1,1,10,63,"The position of construction breaks and the extent ofindividual concrete pours are to be recorded by the Contractor on the Structural Engineer's drawings and areto be submitted to the Engineer/Principal Agent and the Structural Engineer for their records.F:......................... V:........................ T:.........................","Item",0]
[]
[1,1,11,null,"E4. SITE INSTRUCTIONS","H2",0]
[]
[1,1,11,64,"Site Instructions issued on site are to be recorded intriplicate in a Site Instruction book which is to be maintained on site by the Contractor.F:............................. V:............................ T:.................","Item",0]
[]
[1,1,11,null,"E5. LABOUR RECORDS","H2",0]
[]
[1,1,11,65,"At the end of each week the Contractor shall provide the Engineer/Principal Agent with a written record, in schedule form, reflecting the number and description oftradesmen and labourers employed by him and all sub-contractors on the works each day.F:............................. V:...........................T:...................","Item",0]
[]
[1,1,11,null,"Note: In the event that the contractor fails to satisfy the requirements of this specification, the Employer (Head: Public Works) may apply any of the sanctions provided in the contract. Sanctions may include the application of a financial penalty of .04% of the Contract Sum per calendar day of which the requiredreport has not been submitted.",null,0]
[]
[1,1,11,null,"E6. PLANT RECORDS","H2",0]
[]
[1,1,11,66,"At the end of each week the Contractor shall providethe Engineer/Principal Agent with a written record, inschedule form, reflecting the number, type and capacityof all plant, excluding hand tools,  currently used on the works.F:......................... V:........................ T:.........................","Item",0]
[]
[1,1,12,null,"E7. CESSION OF MONIES","H2",0]
[]
[1,1,12,67,"The Contractor shall not cede nor assign his rights orclaims to any monies due or to become due under this contract.F:......................... V:........................ T:.........................","Item",0]
[]
[1,1,12,null,"E8. SECTIONAL COMPLETION","H2",0]
[]
[1,1,12,68,"When it is required that the contract be executedin sections or portions, the tenderer shall allow for all costs in this regard as no claim for additional costs will be entertained.F:......................... V:........................ T:.........................","Item",0]
[]
[1,1,13,null,"E9. LOCAL LABOUR","H2",0]
[]
[1,1,13,69,"It is a general requirement of this contract that persons normally resident in the locality of the works (Local Labour) or unemployed parents whose children attend this specific school, be given preference for employment on the contract. Provided, however, that should adequate and appropriate Labour not be available within the locality, others may be employed subject to satisfactory proof being provided that every reasonable endeavour has been made to employ Local Labour. The Contractor shall identify the local community leaders with the purpose of negotiating with them regarding the utilization of Local Labour in the construction process. In this regard, the Contractor shall furthermore give preference, wherever possible to the employment of single heads of households, women and youth. The Contractor shall, in general, maximize the involvement of the local community. All standard local labour employment forms (EPWP), local labour forms, together with the supporting documentation ie, Certified copies of ID Documents, Employment details, wage rates, proof of payments, period of employment and employment contracts, must be submitted with the monthly payment certificate to the Engineer.    F:......................... V:........................ T:.........................","Item",0]
[]
[1,1,13,null,"E10. IMPORT PERMITS AND DUTIES","H2",0]
[]
[1,1,13,70,"The responsibility for obtaining the necessary importpermits shall rest with the successful Tenderer. No foreign exchange will be arranged or provided by the Administration.Tenderers are to allow in their tenders and pay the ordinary levy imposed on imported items in terms ofitem 196.10 of Part 8 of Schedule No. 1 of the Customsand Excise Act, 1964 with effect from 1 October 1989.F:......................... V:........................ T:.........................","Item",0]
[]
[1,1,14,null,"E11. CONTRACT PRICE ADJUSTMENT PROVISIONS (CPAP)","H2",0]
[]
[1,1,14,71,"Notwithstanding anything to the contrary contained in theGCC for Construction Works 2010 2nd Edition, thisContract shall only when the Construction Period exceeds 6 months and the Contract sum exceeds R1,000,000,00  be subject to the Contract Price Adjustment Provisions Indices Application Manual for use with P0151 indices (CPAP) (Revised 1 January 2013) as published by Statistics South Africa. Tenderers are advised thatwith reference to Clause 3.4.6 of the Contract Price Adjustment Provisions (CPAP) Indices ApplicationsManual, the Head: Public Workswill not accept the submission by Tenderers of lists of  additional items.Where this contract is a Lump Sum contract,the contract will be subject to Contract Price Adjustment Provisions (CPAP) only where the contract period equalsor exceeds 6 calendar months. The applicable work group shall be WG 180 for domestic buildings or WG 181 for commercial and industrial buildings.F:......................... V:........................ T:.........................","Item",0]
[]
[]
[1,1,14,null,"E12. EPWP CONDITIONS AND SPECIFICATIONS","H2",0]
[]
[1,1,15,null,"12.1  EMPLOYMENT TARGETS ","H3",0]
[]
[1,1,15,72,"E12.1 a Employment TargetsThe contractor needs to provide a realistic estimate onthe number of jobs that the project has the potential tocreate throughout the project duration as the project will be implemented using labour intensive construction methods on elements where it is economical and feasible for this construction method.No of jobs to be created = ……. [Contractor to fill in an estimated number]F:......................... V:....................... T:......................","Item",0]
[]
[1,1,15,73,"E12.1 b Employment requirementsTenderers are advised that this contract will be subject tothe Expanded Public Works Program (EPWP) aimed at alleviating and reducing unemployment.Tenderers must allow for any costs for the employmentof unskilled labour as per the requirements of the EPWP program;1. 55% of unskilled labour to be women.2. 55% of unskilled labour to be youth aged between 18     and 35 years3. 2% of unskilled labour to be people living with disability 4. 100%  Unskilled labour utilised must reside withinthe boundaries of the Municipality Ward where this contract is executed, with preference to the local community closest or at the walking distance to the contract site. Wherever possible local skilled tradesmenare to be employed on this contract with the view to maximize utilization of local resources.(See E9) F:............................. V:............................ T:................","Item",0]
[]
[1,1,16,74,"E12.1 c Labour rate and payment intervalsThe contractor should ensure that labour rate paid to unskilled local labour is commensurate to the daily task.When determining the rate, consideration should be given to that EPWP beneficiaries are mostly bread winners in their families, as the program intends alleviating poverty. There should also be consideration that the labour rate promotes creation of expanded number of jobs created and person days of work.Contractors should make endeavours to ensure that labourers, particularly unskilled are remunerated on fortnight basis and prior notification be made should there be a shortfall on their wages.The labour rate for local unskilled shall also be determined in consideration of the location of the project, i.e. for projects implemented in urbanized municipalities will not be the same as that for rural municipalities.F:......................... V:........................ T:.......................","Item",0]
[]
[1,1,16,null,"12.2 LABOUR INTENSIVE CONSTRUCTION METHOD ","H3",0]
[]
[1,1,16,75,"E12.2 a Labour Intensive Construction (LIC) methodOn site there must a person(s) having competency inmanaging and implementing LIC methods. *Foreman @ NQF Level 4 the Unit Standard on   Implementing LIC methods on site.*Site Agent/ Managers @ NQF level  5 the Unit Standard on Manage Labour-Intensive Skills Programme both  must be CETA accreditedF:............................. V:............................ T:................","N/A",0]
[]
[1,1,17,76,"E12.2 b Labour Intensive Construction MethodThose parts of the contract to be constructed using Labour Intensive methods will be marked in the BoQ with letter LI (indicating Labour Intensive) against every item so designated. Such works will only be constructed using method so indicated. Reference to be made to Guidelines for the implementationof Labour Intensive Infrastructure projects under EPWP. \"Scope of Work in Respect of Work Relating to the Expanded Public Works Programme (EPWP)\"F:............................. V:............................ T:............................ ","N/A",0]
[]
[1,1,17,null,"12.3 RECORD KEEPING","H3",0]
[]
[1,1,17,77,"12.3.1 Every employer must keep in the project site office the following  minutes of site progress minutes; contractors’ monthly site progress reports; accurately recorded attendance register; proof of payment as means to verify authenticity of data in the EPWP Beneficiary form submitted with payment certificates. Copies of submitted EPWP beneficiary data forms should also be kept in the site office.  F:............................. V:...................T:.......................... ","N/A",0]
[]
[1,1,17,78,"12.3.2 The employer must keep this record for a period of at least three (3) years after the completion of the project in his/her office as the project site office would have been relocated. This should be safely kept for job creation data verifications and periodical audits on projects conducted by National and Provincial  Department of Public Works  after one (1) or two (2) quarters of submitting captured EPWP Data to the National EPWP coordinating Department.    F:........................... V:...................... T:...................... ","Item",0]
[]
[1,1,18,null,"E12.4 EPWP REPORTING as per EPWP DATA FORM","H3",0]
[]
[1,1,18,79,"At the end of each month as part of site progress report and to be attached to every contractors’ progress payment certificate; the contractor shall provide the principal agent & Public Works with a written records, as per EPWP data form; which will be reflecting, beneficiaries full name & surname; ID No and job description of labour employed by main contractor and sub-contractors on site. At the end of each month the contractor must submit the following documents to be attached to the Progress payment certificate:1. EPWP monthly data collection form 2. Worker monthly payment upload3. Worker monthly proof of payment  i.e 3.1 Acknowledgement of receipt of payment or3.2 Payslips 3.3 Bank statement highlighted the workers paid 4. Worker monthly training form 5. Monthly attendance register6. Certified copies of ID’s (once off)7. ID size photos (once off)8. Proof of UIF 9. Proof of COIDAF:....................... V:..................... T:.......................","Item",0]
[]
[1,1,19,null,"E12.5  EPWP PROMOTION","H3",0]
[]
[1,1,19,80,"12.5.1 EPWP signage board  EPWP Program at the project level shall always be promoted through have the projects signage board that embrace EPWP logo at the bottom, correct measurement for this signage board will be provided by the project leader during the site handing over meeting. the standard \"HELVETIVA Medium \" letters are to be used . Professional title to be 10 mm above line . Line thickness to be 8 mm thick . Space between bottom of the line and bottom of the lettering below the line has to be 100 mm. Letter sizes are as follows : Helvetian medium 100 mm black upper case to be for project name and owner . Helvetian medium 75mm black upper case only to be used for professional titles.Project name and owner shall be black lettering on white background board sizes are as follows : Board to be minimum 2000mm from ground level and to be constructed from reinforced formed chromadek panels minimum 0,6mm thick chromadek. The contractor is responsible for ensuring that the project board remains neatly and safely erected for the full duration including maintenance period, after which the project board and post are to be dismantled and handed to the client in good order.         F:........................ V:........................ T:........................","N/A",0]
[]
[1,1,19,81,"12.5.2 Branding of labour apparel  Contractor & Sub-contractors’ labourers shall be provided with EPWP branded Personal Protective Equipment (PPE), reflector vest with EPWP wording at the back is an ideal and cost effective means of promoting program on site. The contractor is then advised to price for both item 17.5.1 and 17.5.2  F:........................ V:....................... T:.........................","N/A",0]
[]
[1,1,21,null,"E12.6 COMMUNITY LIAISON OFFICER (CLO)","H3",0]
[]
[1,1,21,82,"UTILISATION OF A COMMUNITY LIAISON OFFICER  In addition to the requirements of Clause E9, contained in this document;   The Contractor shall allow for and pay any and all costs necessary for the engagement of the services of a Community Liaison Officer (CLO) for the full duration of this contract.  In the interest of providing a sound service to both the community and the Contractor, a CLO may only manage one project at a given time.  A CLO will be identified by the local structures of the ward areas and appointed following fair and transparent interviewing process, to be conducted in the presence of local structures and the contractor representative, in order to assist the Contractor in the procurement of any local labour, etc. required for this project. The Contractor is to liaise with the CLO and afford him any assistance needed in ensuring sound working relations with the local community.  Key Responsibilities of the CLO are envisaged to include and not necessary be limited to:  1. Assisting local leadership in conducting skills and resources audit which facilitates sourcing labour from within the ward or targeted areas for employment, as required by contractor.  2. Assisting in sourcing labour-only domestic sub-contractors and the procurement of materials from local resources, as required by the contractor.  3. Assisting the contractor by identifying areas of potential conflict and or threats to the project or to stakeholders in the project and recommend appropriate action to the contractor.  4. Assisting contractor and stakeholders in the project in the resolution of any conflict which may arise.  5. Establishing and ensuring that sufficient and open communication channels between the contractor and the work force are maintained.  6. Establish and ensuring that efficient and open communication channels between the contractor and the community are maintained  7. Identifying and reporting to the Contractor regarding issues where communication between stakeholder is necessary, recommend courses of action and facilitate such communications  8. Assisting the Contractor and the work force in the establishment of grievance procedures and necessary recommendation to the Contractor regarding the grievances and solution thereto.  9. Attending to site meetings and project implementation meetings as required by the Contractor and prepare periodic reports as may be required by the Contractor from time to time.  10. Attending to such other duties which are consistent with the functions of a CLO, as may be required by the Contractor from time to time.  Tenderers are to price twice the rate of unskilled local labour rate against this item for any and all costs arising out of compliance with the foregoing and in the event of a Tenderer failing to price against this item or making inadequate financial provision against this item for compliance as aforesaid, then no claim for costs or additional cost incurred will be entertained by the Head: Works  F:........................ V:......................... T:....................... ","Item",0]
[]
[1,1,22,null,"E12.7  SKILLS DEVELOPMENT ON SITE","H3",0]
[]
[1,1,22,83,"Contractor in conforming to the object of EPWP that its beneficiaries need to be capacitated with skills that will render them employable in the future. It is then the responsibility of the Contractor that mandatory life skills are provided to 100% of workforce on site and on the job training to labourers from whom the potential for further development has been identified. The latter is not mandatory to all as it covers technical skills.   Contractor should also make provision for the possibility that there might be local youth that will need to be placed on the project with an intention to be provided support towards improving their level of competency and productivity. Contractor shall also provide all necessary on-the-job training to targeted labour to enable such labour to master and advance on techniques required to undertake the work in accordance with requirements of the contract in a manner that does not compromise workers health and safety.  F:......................... V:........................ T:........................","Item",0]
[]
[1,1,22,null,"E12.8 LABOUR ONLY Sub Contracting for local emerging enterprises","H3",0]
[]
[1,1,22,null,"Tenderer’s are advised that this contract is subject to the Expanded Public Works Programme (EPWP) and the following criteria will apply: ",null,0]
[]
[1,1,23,null,"AFRICAN EQUITY OWNERSHIP","H4",0]
[]
[1,1,23,84,"a)  The Tenderer is to allow for  5% of the total value of works to be undertaken by a Priority Population Group.  This percentage excludes the costs of employing local unskilled labour. The allocation of this percentage from the Project, the screening of people, the selection of skills, will be for the Contractor to adjudicate.  b)  The Priority Population Group consists of women, youth and disabled people.  c)  The Contractor is to give first option for prospective PPG’s from the surrounding areas of the Project. Should there be insufficient suitable people fitting the criteria of PPG’s, the Contractor may hire people from further afield. This is to be done only after consultation with the Department of Works EPWP Co-ordinator and the Community Liaison Officer (CLO).  d)  A Mentor is to be employed by the Contractor, in consultation with the Department of Works for the purposes of quality control and liaison between the Contractor and the selected PPG’s on site. The mentor will be responsible for ensuring an acceptable level of quality workmanship and that such work carried out by the PPG's is executed within the time frames stipulated.   In so far as possible, the Contractor is encouraged to expand the PPG’s skills, knowledge and performance levels.  F:........................ V:........................ T:.......................","Item",0]
[]
[1,1,24,null,"TENDERER'S TO NOTE CONDITIONS","H4",0]
[]
[1,1,24,null,"a) The contract to be entered into between the Contractor and the PPG’s will be a LABOUR ONLY sub-contract.  b) The Contractor will be responsible for ensuring that all materials for use by the PPG’s in the works are to be on site timeously. The Contractor shall liaise with The Mentor and PPG to determine the nature and extent of materials required and the lead time necessary.  c) The Contractor shall be responsible for the overall programming of the Works and he is to allow for monitoring the PPG’s programme and progress.  d) In conjunction with the Mentor, he is to allow for the supervision and mentoring (where necessary) of the PPG to ensure quality and adherence to standard building practice  e) The Contractor is to allow for extra storage facilities on site for the PPG’s tools and equipment.  f) Basic tools shall be provided by the PPG’s and where these are not available; the Contractor will supply him with the necessary tools and equipment and deduct the costs thereof from the interim claims made by the PPG.  g) Work requiring specialized tools will be provided free of charge by the Contractor with the provision that these be returned upon completion of the Work.     ",null,0]
[]
[1,1,25,null,"CO-ORDINATION","H4",0]
[]
[1,1,25,85,"The Contractor is to co-ordinate the work of all the PPG’s, Sub-Contractors and Nominated Sub- Contractors appointed direct by the Employer in such a manner and at all times as will suit the building programme and he is to allow adequate access, for the PPG’s, where required, to carry out their work in an efficient manner as no claims for extras in this connection will be entertained.  F:........................  V:.......................  T:...................... ","Item",0]
[]
[1,1,25,null,"ATTENDANCE ","H4",0]
[]
[1,1,25,86,"The Contractor may allow for attendance upon the PPG’s concerned to execute the work. The Contractor is to allow the PPG’s the use of any scaffolding belonging to him while it remains so erected on the site.   Where scaffolding is necessary for the use by any PPG and the Contractor has not erected any for his own use or has removed same after his own use, the Contractor shall supply sufficient scaffolding to the PPG to be erected and dismantled by the PPG and returned to the Contractor.  This attendance upon PPG’s to execute the work is to include for the scaffolding provisions as aforesaid and, in addition, is to include for co-operating to the fullest extent with all the parties, attending on off-loading materials, providing suitable storage for tools and materials used by the PPG’s, use of general facilities such as latrines, etc., supply and cost of power, lighting, water and the like.  F:.........................  V:.......................  T:........................","Item",0]
[]
[1,1,26,null,"E12.9 EPWP CONTRACT FOR LABOUR","H3",0]
[]
[1,1,26,87,"It is compulsory that shortly after the contractor and or sub contractor has appointed local labour, the employment contract should be signed by both parties, prior to commencement with works on site. The employment contract forms part of the Ministerial Determination or from the regional EPWP officials. Each contract will lapse at the end of each financial year therefore requiring the Contractor  to do a renewal of each contract should the need of employment still exist for that particular labourer.  F:........................  V:......................  T:..........................","Item",0]
[]
[1,1,26,null,"E12.10  EPWP SCOPE OF WORK","H3",0]
[]
[1,1,26,null,"Contractors are to price any item on the Bill of Quantities having below, bearing in mind that they are regarded as  main sources of job creation, whether sub contracted or undertaken by the main contractor.",null,0]
[]
[1,1,26,88,"Elements on the scope of work where application of Labour Intensive Construction methods as  will indicated with letters (LI) are regarded feasible are as follows;  i)  Excavating trenches for foundations and any other civil works with the  depth not more than 1.5 m   ii)  All masonry works which include concrete mixing on site; brickwork; plastering; screed works; jointing; etc.  iii)  Painting, Plumbing, Ironmongery; roof cladding; glazing; tilling; carpentry; flooring; waterproofing; etc.  F:........................ V:........................ T:........................","Item",0]
[]
[1,1,28,89,"  Note: It is a general requirement of this contract that persons normally resident in the ward of the works (local labour) be given preference for employment on the contract. Provided, however, that should adequate and appropriate labour not be available within the ward, others may be employed subject to satisfactory proof being provided that every reasonable endeavour has been made to employ local labour (Local Sub-contractor(s); Skilled; Semi-Skilled and Unskilled). The contractor shall in consultation with the local community leaders with the purpose of negotiating with them regarding the utilization of local resources in the construction process. In this regard, the contractor shall furthermore give preference, wherever possible to the employment of single heads of households, women and youth as well as families declared as most indigent by War on Poverty/ Sukuma Sakhe program profiling process. The contractor should aim, in general, to maximise the involvement of the local community, however workers from other communities should not exceed 20% of all persons working on the project, where local employees possess skills at level of competency that meet contractors requirements.  Payment for the labour-intensive component of the works. Payment for works identified in the Scope of Work as being labour-intensive shall only be made in accordance with the provisions of the Contract if the works are constructed strictly in accordance with the provisions of the Scope of Work. Any non-payment for such works shall not relieve the Contractor in any way from his obligations either in contract or in delict.  Linkage of payment for labour-intensive component of works to submission of project data.  The Contractor’s payment invoices shall be accompanied by labour information for the corresponding period in a format specified by the employer. If the contractor chooses to delay submitting payment invoices, labour returns shall still be submitted as per frequency and timeframe stipulated by the Employer. The contractor’s invoices shall not be paid until all pending labour information has been submitted.  Applicable labour laws  The current Ministerial Determination (also downloadable at www.epwp.gov.za)  Expanded Public Works Programmes, issued in terms of the Basic Conditions of Employment Act of 1997 by the Minister of Labour in Government Notice , shall apply to works described in the scope of work as being labour-intensive and which are undertaken by unskilled or semi-skilled workers.  F:......................... V:....................... T:....................... ","Item",0]
[]
[1,1,28,null,"E13  HIV/AIDS AWARENESS","H3",0]
[]
[1,1,28,null,"Tenderers are to price against the following items for compliance with the SPECIFICATION FOR HIV/AIDS AWARENESS  bound into this document (The clauses referred to are those of the Specification for HIV/AIDS)",null,0]
[]
[1,1,28,90,"E13.1    Provide and maintain a condom dispenser in             terms of Clause 5.1a)              F:................... ... V:................... T:...................","Item",0]
[]
[1,1,28,91,"E13.2    Provide and maintain HIV/AIDS awareness posters  terms of Clause 5.1b)              F:................... V:................... T:................. ","Item",0]
[]
[1,1,28,92,"E13.3   HIV /Aids Awareness Programme on Site for notless than 90% of workers inclusive of all direct and indirect costs; Engage a qualified service provider as describedin the scope of works to conduct an HIV Awareness Programme  in terms of Clause 5.2.1a)             F:.................... V:................... T:...................","Item",0]
[]
[1,1,28,93,"E13.4   Arrange for workers to attend the HIVAwareness Programme in terms of Clause 5.2.1b)            F:..................  V:..................  T:.................","Item",0]
[]
[1,1,29,null,"E13  HIV/AIDS AWARENESS","H3",0]
[]
[1,1,29,94,"E13.5   Reporting            Prepare and attach to claims for payment a briefreport in terms of Clause 5.3 (see also HIV/STI Compliance Report includedwith this document).             F:................... V:..................... T:....................             Note: In the event that the contractor fails to satisfy the requirements of this specification, the employer (Head: Public Works) may apply any of the sanctions provided for in the contract. Sanctions may include the application of a financial penalty of .04% of the Contract Sum per calendar day of which the required reports has not been submitted.","Item",0]
[]
[1,1,29,null,"E14  OCCUPATIONAL HEALTH AND SAFETY ACT NO. 85 OF 1993","H3",0]
[]
[1,1,29,95,"Tenderers are to allow for costs in providing  a project specific ' Construction Phase Safety, Health and Environmental Plan' in accordance with  \"Section 2 - Specification Data associated with SANS 1921-1:2004\" clause C4.18 in \"Part C3 - Scope of Work\"  F:...................  V:.....................  T:.................... ","Item",0]
[]
[1,1,29,null,"E15  NOTICE BOARD, SITE OFFICE, ETC.","H3",0]
[]
[1,1,29,96,"Bidders are to allow for the provision and removal of a project notice board and a site office in accordance with the Principal Agent's requirements.  F:...................... V:.................... T:..................... ","Item",0]
[]
[1,1,30,null,"E16  IMPORTED MATERIALS AND EQUIPMENT","H3",0]
[]
[1,1,30,97,"Where imported items are listed in the tender documents, the tenderer shall provide all information called for, failing which the price of any such item, material or equipment shall be excluded from currency fluctuations. (Refer to T2.14 - Schedule of Imported Materials and Equipment.  F:..................  V:.....................  T:..........................","Item",0]
[]
[1,1,30,null,"E17  CONTRACT DOCUMENTS","H3",0]
[]
[1,1,30,98,"The drawings issues with these Bid documents do not comprise the complete set but serves as a guide only for Biding purposes and for indicating the scope of works to enable the Bidder to acquaint him with the nature and extent of the works and the manner in which they are to be executed. Should any part of the drawings not be clearly legible to the Bidder he shall, before submitting his Bid, obtain clarification in writing from the principal agent.   F:..................... V:................... T:..................... ","Item",0]
[]
[1,1,30,null,"E18  GENERAL PREAMBLES","H3",0]
[]
[1,1,30,99,"The Document Preambles will be the “ASAQS Model Preambles for Trades – 2008” and is obtainable from the various Regional Office’s of the Department of Public Works and shall be read in conjunction with the Bills of Quantities and be referred to for the full descriptions of work to be done and materials to be used.  F:.................... V:..................... T:..................... ","Item",0]
[]
[1,1,31,null,"E19  TRADE NAMES","H3",0]
[]
[1,1,31,100,"Wherever a Trade Name for any product has been described in the Bills of Quantities the Bidder's attention is drawn to the fact that any other product of equal quality may be used subject to the written approval of the Principal Agent being obtained prior to the closing date for submission of Bids.  F:..................... V:....................... T:....................... ","Item",0]
[]
[1,1,31,null,"E20  EXISTING PREMISES OCCUPIED","H3",0]
[]
[1,1,31,101,"Refer to Scope of Works  Part C3 of this Bid Document for information on the occupation of existing buildings.  F:................... V:.................... T:..................... ","Item",0]
[]
[1,1,31,null,"E21  INACCURATE AND DEFECTIVE WORK EXECUTED UNDER PREVIOUS CONTRACT","H3",0]
[]
[1,1,31,102,"The contractor shall, after taking possession of the site and before commencing the work, check all levels, liners, profiles and the like and satisfy himself as to the dimensional accuracy of all work executed under the previous contract which may affect his work. Should any inaccurate or defective work be found, the contractor shall immediately notify the principal agent in writing requesting his instructions with regard thereto and afford every facility to those rectifying such inaccurate or defective work.  F:.................... V:..................... T:..................... ","Item",0]
[]
[1,1,31,null,"E22  VIEWING THE SITE IN SECURITY AREAS","H3",0]
[]
[1,1,31,103,"If the site is situated in a security area and the Bidder must arrange with the Authorities to obtain permission to enter the site for Bidding purposes.  F:......................  V:....................  T:....................... ","Item",0]
[]
[1,1,32,null,"E23  COMMENCEMENT OF WORKS IN SECURITY AREAS","H3",0]
[]
[1,1,32,104,"If the works falls within a security area, the contractor must arrange with the Authorities and give the necessary notices before commencement of the works. Should the contractor fail to make such arrangements, admission to the site may be refused and any additional costs will be for the contractor's account.  F:......................  V:......................  T:..................... ","Item",0]
[]
[1,1,32,null,"E24  ENTRANCE PERMITS TO SECURITY AREAS","H3",0]
[]
[1,1,32,105,"If the works fall within a security area, the contractor shall obtain entrance permits for his personnel and workmen entering the area and shall comply with all regulations and instructions which may be issued from time to time regarding the protection of persons and property under control of the Authority.  F:.......................  V:.......................  T:...................... ","Item",0]
[]
[1,1,32,null,"E25  SECURITY CHECK OF PERSONNEL","H3",0]
[]
[1,1,32,106,"The principal agent may require the contractor to have his personnel and workmen, or a certain number of them, security classified. In the event of the principal agent requesting the removal of a person or persons from the works for security reasons, the contractor shall do so forthwith and shall thereafter ensure that such person or persons are denied access to the works and the site and/or to any document or information relating to the works.  F:....................... V:...................... T:....................... ","Item",0]
[]
[1,1,33,null,"E26  PROHIBITION ON TAKING PHOTOGRAPHS","H3",0]
[]
[1,1,33,107,"In terms of article 119 of the Defence Act, 44 of 1957, it is prohibited to sketch or to take photographs of any military site or installation or any building or civil works thereon or to be in possession of a camera or other apparatus used for taking photographs, except when authorised thereto by or on behalf of the Minister. The same prohibition is also applicable to all Correctional Institutions in terms of article 44.1(e) of the Correctional Services Act 8 of 1959.  F:........................ V:...................... T:...................... ","Item",0]
[]
[1,1,33,null,"E27  MANAGEMENT OF WATER","H3",0]
[]
[1,1,33,108," Water for Construction purposes must be obtained from alternative water sources (i.e. supply other than water that is produced and distributed by a regulated water service authority from a licenced water treatment works for human consumption), eg dams, rivers, boreholes, springs, rainwater harvesting, recycled sewerage water, etc. The alternative water source shall not be of an inferior quality / standard than that required for construction purposes. The client reserves the right through his agents to test such supplies or request certificates confirming the grade and nature of the water supply. Relevant knowledge of the respective area will be an advantage.   F:.....................  V:.....................  T:....................... ","Item",0]
[]
[1,1,34,null,"E28  ELECTRICITY CONSUMPTION","H3",0]
[]
[1,1,34,109,"The contractor will be responsible to remunerate the school with an amount of R 1200.00/month for electricityused on the site during the construction period and from site handover until works completion is reached and must make allowance in their preliminaries for such payment to the school on a monthly basis and if this is not paid, it will be deducted in the final account. The above mentioned electricity payments will onlybe applicable if the contractor make use of the school's electricity. However the school is not obligedto supply the contractor with electricity, and if so thecontractor must provide his own electricity for construction purposes. Contractors also need tofactor in the unavailability of electricity due to load shedding or any other disruptions and no claims withreference to any such disruptions will be entertained inrespect of time or money.   F:.....................  V:.....................  T:....................... ","Item",0]
[]
[]
[{"$nulls":4},"SUMMARY OF CATERGORIES"]
[{"$nulls":4},"Category :Fixed ___________"]
[{"$nulls":4},"Category :Value ___________"]
[{"$nulls":4},"Category :Time ___________"]
[]
[{"$nulls":8},{"$f":"+I37","v":{"v":0,"d":"0.00"}}]
[]
[2,1,37,null,"SECTION No. 2","H1"]
[]
[2,1,37,null,"BILL No. 1 : ALTERATIONS","H1"]
[]
[2,1,37,null,"MODEL PREAMBLES","H2"]
[]
[2,1,37,null,"The tenderer is referred to the \"Model Preambles for Trades 2008\" for supplementary and comprehensive expansion of descriptions, appropriate provision for which shall be deemed to have been included in all relevant rates"]
[]
[2,1,37,null,"SUPPLEMENTARY PREAMBLES","H2"]
[]
[2,1,37,null,"Existing Furniture, Equipment, etc","H3"]
[]
[2,1,37,null,"The Contractor shall not remove or damage any furniture, equipment or similar items that belong to the Department except when specifically described in the items to follow: The Contractor must give the Principal Agent sufficient notice if the removal of these items are required before any prescribed alterations can be done"]
[]
[2,1,38,null,"Damage to existing finishes","H3"]
[]
[2,1,38,null,"The Contractor will be held responsible for all damage however caused to existing finishes and fittings, etc. and he must make good all damage at his own expense to the approval of the Principal Agent.  Breaking down, demolition and alteration activities and tasks, hacking off of exitsing plaster, etc. is to be executed with care so as to prevent damage to remaining floor and wall surfaces and finishes (where these are to be retained). Tenders will be deemed to include allowance for any necessary protection of exitsing surfaces and structures as may be necessary to effect the above, as the cost of repairing damage to existing surfaces and structures will be solely for the Contractors account"]
[]
[2,1,38,null,"Responsibility for site","H3"]
[]
[2,1,38,null,"The Contractor is to note that upon possession of the site by himself, and extending until practical completion is achieved, he is solely responsible for the site, site security, general upkeep and cleaning of the site and all other responsibilities in maintaining a construction site in conformance with but not limited to, the Construction Regulations 2014, all local by-laws, all user client regulations, and all Client regulations and procedures. Tenderers are therefore urged to study all available material and to investigate the site fully and areas contiguous to the site, in order to determine the range and extent of responsibility. No additional monetary and/or time claims will be entertained in respect of the above"]
[]
[2,1,38,null,"Explosives","H3"]
[]
[2,1,38,null,"No explosives whatsoever may be used for demolition purposes unless otherwise stated"]
[]
[2,1,39,null,"General","H3"]
[]
[2,1,39,null,"The Contractor shall carry out the whole of the works with as little mess and noise as possible and with a minimum amount of disturbance to adjoining classroom blocks and their students. He shall provide proper protection of the works and provide, erect and remove when directed, any temporary tarpaulins that may be necessary during the progress of the works, all to the satisfaction of the Principal Agent"]
[]
[2,1,39,null,"Water supply pipes and other piping that may be encountered and found necessary to disconnect or cut, shall be effectually stopped off or grubbed up and removed, and any new connections that may be necessary shall be made with proper fittings, to the satisfaction of the Principal Agent"]
[]
[2,1,39,null,"Doors, fanlights, fittings, frames, linings, etc which are to be re-used shall be thoroughly overhauled before refixing including taking off, easing and rehanging, cramping up, re-wedging as required and making good cramps, dowels, etc, and easing, oiling, adjusting and repairing ironmongery as necessary, replacing any glass damaged in removal or subsequently and stopping up all nail and screw holes with tinted plastic wood to match timber, unless otherwise described. Re-painting or re-varnishing is given separately"]
[]
[2,1,39,null,"\"Taking out and removing doors, windows, etc\" implies that the door, etc is to be carefully taken down together with the fame, linings, architraves, window sills, etc complete and where brick lintels occur, it must be supported and propped until the openings are built up or new doors or windows built in position"]
[]
[2,1,39,null,"Prices for taking out and removing doors and frames shall include for removing door stops, cabin hooks, etc. and making good floor and wall finishes to match existing"]
[]
[2,1,40,null,"\"Forming openings\" for doors or windows, etc implies that the plaster or any other covering is to be hacked off and an opening formed sufficient in size to receive the building in of the frame and cramps, and the forming of new dampproof courses, lintels, sills, etc. After building in of the new frame, the opening is to be built against the frame, plaster or faced brickwork to be made good both sides and reveals and floor screeds prepared for finishings to match existing"]
[]
[2,1,40,null,"\"Making good\" implies that all necessary repairs are to be made to reinstate articles that may be damaged through the removal or otherwise, and the supplying of any new materials to match existing work, and is to include any necessary repairs to adjacent finishings such as floors, skirtings, plaster, painting, etc and such making good is to match adjoining work in all respects and in all trades"]
[]
[2,1,40,null,"The Contractor will be required to take all dimensions affecting the existing buildings on the site and he will be held solely responsible for the accuracy of all such dimensions where used in the manufacture of new items (doors, windows, fittings, etc)"]
[]
[2,1,40,null,"The Contractor to acknowledge that sequencing of the work will be necessary to accommodate the operational aspects of the school. The Contractor to accordingly factor the above requirement in the construction programme and pricing"]
[]
[2,1,40,null,"\"Breaking down and removing\" walls, etc implies that the wall is to be taken down to the extent shown on the drawings or as may be described and that all necessary shoring is to be provided and allowed for to ensure the safety of the building during the pulling down or until new walls are erected and all portions of the remaining walls where distrubed or affected by the removal are to be made good and left ready for plaster or other finishings as described"]
[]
[2,1,40,null,"Where removal is included in the heading, sub-heading or item description, prices shall be deemed to include for the necessary costs of removal and appropriate disposal of materials including but not limited to labour, transportation and disposal costs. No further claims in this regard will be entertained"]
[]
[2,1,41,null,"\"Building up openings\" implies that after the removal of any doors, windows or screens that may be decribed to be taken down, the opening is to be filled up solid (or to the tickness as shown) with new brickwork and is to include all necessary cutting away to form toothings to thoroughly bond to the new work and new finishes to both sides as described."]
[]
[2,1,41,null,"Removal of asbestos material","H3"]
[]
[2,1,41,null,"All preparatory work, alterations, etc., to existing asbestos cement roof sheeting, gutters, rainwater pipes, etc., is to be carried out strictly by an approved and certified specialist company and in accordance with statutory requirements (Occupational Health and Safety Act, 1993 - Asbestos Regulations 2001) and all necessary precautions must be taken when working with and disposing of asbestos cement products and the disposal of waste water resulting from cleaning operations, etc."]
[]
[2,1,41,null,"The following shall apply in respect of asbestos removal","H3"]
[]
[2,1,41,null,"The removal of asbestos shall be carries out by a certified entity, registered in accordance with the Occupational Health and Safety Act. 1993 and the Asbestos Regulations 2001  Asbestos in all forms/building elements that is to be removed, shall be carried out in strict accordance with aforementioned regulation and a certificate issued by the entity as contemplated in the above, shall be provided per block for the removal thereof, where the term block shall in this context refer to any single, free standing building structure, regardless of size or purpose"]
[]
[2,1,42,null,"Corresponding disposal certificates shall be issued by the facility at which the asbestos is disposed off, with said facility to, prior to the disposal of any asbestos material provide satisfactory proof that the facility is duly registered and fully compliant in terms of the act, to receive the asbestos material  Under no circumstances is the Contractor nor any of his duly authorised representatives to sell and/or give away asbestos material to any member/s of the school community, the community in general or the public at large. Should this be found to be occuring, the Contractor will be held responsible contractually and may further be prosecuted ciminally"]
[]
[2,1,42,null,"The cost for complying with the above, and all requirements of regulation as reflected above is to be priced for in terms for removal of asbestos material. No further claims in this regard will therefore be entertained"]
[]
[2,1,42,null,"(CPAP WORK GROUP NO. 102 UNLESS OTHERWISE STATED)","H2"]
[]
[2,1,42,null,"TEMPORARY BARRIERS, SCREENS, ETC","H2"]
[]
[2,1,42,null,"Temporary barriers, screens, etc including removal and allow for re-use","H3"]
[]
[2,1,42,1,"SANS approved weld mesh type temporary barrier fencing and shade cloth 1,8m high fixed to and including 100mm diameter gum poles set securely min 300mm deep in ground at max. 3m spacing, including re-using barrier as the works progress on site as per the construction program ","m",150,null,{"$f":"+G444*H444","v":{"v":0,"d":"0.00"}}]
[]
[2,1,43,null,"Temporary protection and waterproofing of roofs","H3",0]
[]
[2,1,43,2,"Temporary waterproof and weatherproof protection of buildings  where roofing and related items have been removed during construction including the supply, installation and rotation of the temporary protection throughout the contract period as per the construction program.","m2",480,null,{"$f":"+G448*H448","v":{"v":0,"d":"0.00"}}]
[]
[2,1,43,null,"DEMOLISH","H2",0]
[]
[2,1,43,null,"Demolish & remove existing","H3",0]
[]
[2,1,43,3,"Existing storage tank base size 2290 x 2540","No",8,null,{"v":0,"d":"0.00"}]
[]
[2,1,43,null,"REMOVAL OF EXISTING WORK","H2",0]
[]
[2,1,43,null,"Break up and remove unreinforced concrete","H4",0]
[]
[2,1,43,4,"150mm Thick surface beds in patches","m2",113,null,{"v":0,"d":"0.00"}]
[]
[2,1,43,null,"Break down and remove brickwork etc","H3",0]
[]
[2,1,43,5,"One brick wall in beamfill and small areas","m2",53,null,{"v":0,"d":"0.00"}]
[]
[2,1,44,null,"Break down and remove blockwork etc","H3",0]
[]
[2,1,44,6,"M140 Blockwork in beamfill and small areas","m2",144,null,{"v":0,"d":"0.00"}]
[]
[2,1,44,null,"Take out and remove doors, windows, etc from brickwork to remain","H3",0]
[]
[2,1,44,7,"Timber door and metal frame 0,9 x 2,1m high in one brick wall","No",2,null,{"v":0,"d":"0.00"}]
[]
[2,1,44,8,"Timber door and timber frame 0,9 x 2,1m high in M140 block wall","No",3,null,{"v":0,"d":"0.00"}]
[]
[2,1,44,9,"Timber door and metal frame 0,9 x 2,1m high in M140 block wall","No",18,null,{"v":0,"d":"0.00"}]
[]
[2,1,44,10,"Metal door and metal frame 0,9 x 2,1m high in M140 block wall","No",3,null,{"v":0,"d":"0.00"}]
[]
[2,1,45,null,"Take down and remove roofs, floors, panelling, ceilings, partitions, etc","H3",0]
[]
[2,1,45,11,"Corrugated metal roof sheeting, including timber purlins, underlay etc.","m2",2075,null,{"v":0,"d":"0.00"}]
[]
[2,1,45,12,"Timber roof structure comprising trusses, rafters, etc spaced at 1 200mm centres","m2",1555,null,{"v":0,"d":"0.00"}]
[]
[2,1,45,13,"Gypsum plasterboard ceilings including cornices, timber brandering, etc not exceeding 3,5m high","m2",167,null,{"v":0,"d":"0.00"}]
[]
[2,1,45,14,"Drywall partitioning.","m2",80,null,{"v":0,"d":"0.00"}]
[]
[2,1,45,15,"Fascia boards and fixings","m",479,null,{"v":0,"d":"0.00"}]
[]
[2,1,46,16,"Barge boards and fixings","m",217,null,{"v":0,"d":"0.00"}]
[]
[2,1,46,17,"Rainwater gutters and fixings ","m",479,null,{"v":0,"d":"0.00"}]
[]
[2,1,46,18,"Rainwater downpipes and fixings","m",96,null,{"v":0,"d":"0.00"}]
[]
[2,1,46,null,"Inspection and Repairs of Existing Roofs","H3",0]
[]
[2,1,46,19,"The contractor is to carry out an inspection of the existing roofs, remove and replace all loose metal sheets, remove and replace damaged sisalation, and roof screws with approved new (8mm diameter with 26mm washers and rubber gasket) including the re-fixing of all looses roof sheets, in accordance to the manufacturer's instructions.","m2",357,null,{"v":0,"d":"0.00"}]
[]
[2,1,47,null,"Hack up/off & remove grano, screed, plaster & prepare surface to receive new","H3",0]
[]
[2,1,47,20,"30mm Screed from floors in patches","m2",258,null,{"v":0,"d":"0.00"}]
[]
[2,1,47,21,"Internal plaster to brickwork in patches","m2",15,null,{"v":0,"d":"0.00"}]
[]
[2,1,47,null,"Hack up/off & remove ceramic tiles & prepare surface to receive new","H3",0]
[]
[2,1,47,22,"On floors in patches","m2",5,null,{"$f":"+G510*H510","v":{"v":0,"d":"0.00"}}]
[]
[2,1,47,null,"Disconnect, demolition and remove ","H3",0]
[]
[2,1,47,23,"Pit latrine seat complete","No",4,null,{"v":0,"d":"0.00"}]
[]
[2,1,48,null,"Alter Openings","H3",0]
[]
[2,1,48,24,"Alter opening in one brick wall where 1 300 x 1 100mm high steel window removed to form opening for new kitchen roller shutter door size 2 500 x 1 115mm high overall by breaking out blockwork on both sides and bottom, including making good cement plaster into reveals and with Reinforced brick lintel.","No",1,null,{"v":0,"d":"0.00"}]
[]
[2,1,48,null,"STRUCTURAL REPAIRS","H2",0]
[]
[2,1,48,null,"Repairs to structural cracks, etc","H3",0]
[]
[2,1,48,25,"Rake out existing minor structural crack, remove all debris/loose material including four times shot fixing 32 x 1,6mm thick strap x 500mm long and plaster over (plaster measured elsewhere)","m",25,null,{"v":0,"d":"0.00"}]
[]
[2,1,48,26,"Rake out existing major structural crack, remove all debris/loose material including embedding steel rods, cutting or drilling slots (60mm deep) in brickwork at 250mm centres to embed 8mm mild steel bars fixed between mortar joints with injected epoxy resin","m",25,null,{"v":0,"d":"0.00"}]
[]
[2,1,48,null,"SERVICE","H2",0]
[]
[2,1,49,null,"Steel Windows","H3",0]
[]
[2,1,49,27,"Service window including lubricating ironmongery and leave in workable condition (replacement of damaged/ missing ironmongery measured elsewhere)","No",143,null,{"v":0,"d":"0.00"}]
[]
[2,1,49,null,"SUNDRIES","H2",0]
[]
[2,1,49,null,"Desludging","H3",0]
[]
[2,1,49,null,"Debris and rubble covering the access to the pit latrine must be cleared and disposed of at a registered landfill site. The pit latrine is to be accessed by the removable cover or removal of the access concrete slab. The solids that cannot be pumped out must be dug out by mechanical means. When the contents of the pit or tank are to be pumped out and the sludge is too firm or dry it must be jetted with a high pressure hose and agitate the mixture of sludge and water with the end of the suction  hose before pumping begins. After pumping out the contents of the pit, the tanker must be driven to a legally authorised safe-disposal site, such as an off-site sewage treatment works, where the contents can be emptied. Dry pits or pits containing large quantities of solid materials incluidng stones, sticks, plastic bags, debris, etc. must be cleaned by individuals with hand held mechanical machinery with the appropriate protective gear in terms of the OHS Act as well as certified to work in confined spaces. Contractors are to ensure that the vacuum tankers are suitable to manoeuvre close to latrines without compromising the integrity of the pit latrine",null,0]
[]
[2,1,49,28,"Clean out pit latrine by desludging. Contractor to price per toilet seat approximately 2Kl in volume","No",14,null,{"v":0,"d":"0.00"}]
[]
[2,1,49,null,"Temporary Accommodation","H3",0]
[]
[2,1,50,null,"Provide temporary accommodation units (park homes) for Educational Facilities during construction in phases as herewith measured including leveling of area, positioning on site and connected electrical supply including issue of electrical compliance certificate. Park homes to be standard size class room size and needs to be minimum 7 x 7m or nearest standard size","H3",0]
[]
[2,1,50,29,"Rental of temporary accommodation approximate size 7 x 7m wide, including standard windows, burglar bars, curtains and tracks, two tier steps for access, light fittings, electrical certificate of compliance, for a period of twelve (12) calendar months","No",7,null,{"v":0,"d":"0.00"}]
[]
[2,1,50,30,"Two tier steps for twelve (12) Calendar months","No",7,null,{"v":0,"d":"0.00"}]
[]
[2,1,50,31,"Transportation and establishment on site and de-establishment on completion temporary accommodation units approximate size 7 x 7m wide","No",7,null,{"v":0,"d":"0.00"}]
[]
[2,1,51,null,"Temporary Ablutions","H3",0]
[]
[2,1,51,32,"Rental of temporary plastic ablutions approximate size 1,2 x 1,2 x 2,3m high for the sole use by the school, for 6 months inclusive of  servicing on a regular basis. Ablutions are to be kept clean and in operation for the duration","No",8,null,{"v":0,"d":"0.00"}]
[]
[2,1,51,33,"Transportation and establishment on site and de-establishment on completion temporary ablutions approximate size 1,2 x 1,2 x 2,3m high","No",8,null,{"v":0,"d":"0.00"}]
[]
[2,1,52,null,"Underpinning","H3",0]
[]
[2,1,52,34,"Carry out narrow foundation 1100mm wide and minimum 800mm deep to be protected both from weather and collapse, allow for compaction and soil poisoning, thereafter cast 1000 x 1000 x 300mm Reinforced concrete footings, jack up existing footing, build new 230mm brick piers(2 no. piers 900mm wide and minimum 500mm high), shutter and fill concrete between piers.  A minimum of 48 hours curing time shall be allowed before commencement of any excavation for the next set of underpinning.  All dimensions (as per drawing D576 - Typical Underpinning Detail) must be verified on site prior construction. ","No",4,null,{"v":0,"d":"0.00"}]
[]
[2,1,{"$nulls":4},0,null,{"$f":"SUM(I443:I561)","v":{"v":0,"d":"0.00"}}]
[]
[3,1,54,null,"SECTION No. 3","H1",0]
[]
[3,1,54,null,"BILL No. 1 : EARTHWORKS","H1",0]
[]
[3,1,54,null,"MODEL PREAMBLES","H2",0]
[]
[3,1,54,null,"The tenderer is referred to the \"Model Preambles for Trades 2008\" for supplementary and comprehensive expansion of descriptions, appropriate provision for which shall be deemed to have been included in all relevant rates",null,0]
[]
[3,1,54,null,"SUPPLEMENTARY PREAMBLES","H2",0]
[]
[3,1,54,null,"Proprietary products in descriptions:","H4",0]
[]
[3,1,54,null,"Proprietary products shall be used as specified. Substitute products of similar quality and specification may only be used with prior approval by the Principal Agent.",null,0]
[]
[3,1,54,null,"Nature of material to be excavated:","H4",0]
[]
[3,1,54,null,"The material to be excavated is assumed to be predominantly of a composition that will allow excavation in \"earth\" as specified, but including a percentage of excavation in \"soft rock\" and \"hard rock\".",null,0]
[]
[3,1,55,null,"Carting away of excavated material:","H4",0]
[]
[3,1,55,null,"Descriptions of carting away of excavated material shall be deemed to include loading excavated material onto trucks directly from the excavations, or alternatively, from stock piles situated on the building site.",null,0]
[]
[3,1,55,null,"Dewatering of excavations:","H4",0]
[]
[3,1,55,null,"The Contractor shall allow for removing seepage and other water from subterranean sources from the excavations by pumping, baling or otherwise.Accurate records of all such dewatering shall be kept to determine the total volume of water so removed and a clear distinction shall be made between water from subterranean sources and other water",null,0]
[]
[3,1,55,null,"Density testing on filling:","H4",0]
[]
[3,1,55,null,"Rates for filling, etc. shall include for all density and soil type testing to prove that the specified compaction is achieved.When additional testing is done on instruction of the  Principal Agent and these tests are successful, they will be paid for additionally.",null,0]
[]
[3,1,55,null,"Imported fill:","H4",0]
[]
[3,1,55,null,"\"Filling and bedding to trenches etc. to be in compliance with SABS 1200 DB and LB respectively\"",null,0]
[]
[3,1,55,null,"EXCAVATION OTHER THAN BULK","H2",0]
[]
[3,1,55,null,"Excavation in earth not exceeding 2m deep:","H3",0]
[]
[3,1,55,1,"Reduced levels under floors.","m3",11,null,{"$f":"+G602*H602","v":{"v":0,"d":"0.00"}}]
[]
[3,1,55,null,"Extra over all excavations for carting away:","H3",0]
[]
[3,1,55,2,"Surplus material from excavations and/or stock piles on site to a dumping site to be located by the contractor.","m3",6,null,{"v":0,"d":"0.00"}]
[]
[3,1,56,null,"Selected earth filling obtained from the excavations and/or prescribed stock piles on site of a minimum G7 grade and compacted to 95% Mod AASHTO density","H3",0]
[]
[3,1,56,3,"Under floors, steps, pavings, footings, etc.","m3",6,null,{"v":0,"d":"0.00"}]
[]
[3,1,56,null,"Coarse river sand filling supplied by the contractor:","H3",0]
[]
[3,1,56,4,"Under floors etc. (Provisional).","m3",6,null,{"v":0,"d":"0.00"}]
[]
[3,1,56,null,"Compaction of surfaces:","H3",0]
[]
[3,1,56,5,"Compaction of ground surface under floors etc including scarifying for a depth of 150mm, breaking down oversize material, adding suitable material where necessary and compacting to 93% Mod AASHTO density.","m2",113,null,{"v":0,"d":"0.00"}]
[]
[3,1,56,null,"Prescribed density tests on filling:","H3",0]
[]
[3,1,56,6,"Allow for compaction tests by an approved laboratory to determine density of filling material.","No",2,null,{"v":0,"d":"0.00"}]
[]
[3,1,56,null,"SOIL POISONING","H2",0]
[]
[3,1,56,null,"Approved brand of anti-termite soil poison applied by a Registered Pest Control company and guaranteed against termite infestation for ten years:","H3",0]
[]
[3,1,56,7,"Under floors, etc., including forming and poisoning shallow furrows against foundation walls, etc., filling in furrows and ramming.","m2",113,null,{"v":0,"d":"0.00"}]
[]
[3,1,{"$nulls":4},0,null,{"$f":"SUM(I601:I629)","v":{"v":0,"d":"0.00"}}]
[]
[3,2,58,null,"SECTION No. 3","H1",0]
[]
[3,2,58,null,"BILL No. 2 : CONCRETE, FORMWORK AND REINFORCEMENT","H1",0]
[]
[3,2,58,null,"MODEL PREAMBLES","H2",0]
[]
[3,2,58,null,"The tenderer is referred to the \"Model Preambles for Trades 2008\" for supplementary and comprehensive expansion of descriptions, appropriate provision for which shall be deemed to have been included in all relevant rates",null,0]
[]
[3,2,58,null,"SUPPLEMENTARY PREAMBLES","H2",0]
[]
[3,2,58,null,"Proprietary products in descriptions:","H4",0]
[]
[3,2,58,null,"Proprietary products shall be used as specified. Substitute products of similar quality and specification may only be used with prior approval by the Principal Agent.",null,0]
[]
[3,2,59,null,"Cost of tests:","H4",0]
[]
[3,2,59,null,"The costs of making, storing and testing of concrete test cubes as required under clause 7 'Tests' of SABS 1200 G shall include the cost of providing cube moulds necessary for the purpose, for testing costs and for submitting reports on the tests to the Architect. The testing shall be undertaken by an independent firm or institution nominated by the Contractor to the approval of the Architect. (Test cubes are measured separately).",null,0]
[]
[3,2,59,null,"Formwork:","H4",0]
[]
[3,2,59,null,"Descriptions of formwork shall be deemed to include use and waste only (except where described as left in or permanent), for fitting together in the required forms, wedging, plumbing and fixing to true angles and surfaces as necessary to ensure easy release during stripping and for reconditioning as necessary before re-use.",null,0]
[]
[3,2,59,null,"The vertical strutting shall be carried down to such construction as is sufficiently strong to afford the required support without damage and shall remain in position until the newly constructed work is able to support itself.",null,0]
[]
[3,2,59,null,"Formwork to soffits of solid slabs etc., shall be deemed to be to slabs not exceeding 250mm thick unless otherwise described.",null,0]
[]
[3,2,59,null,"Formwork to sides of bases, pile caps, ground beams, etc., will only be measured where it is prescribed by the Engineer for design reasons.  Formwork necessitated by irregularity or collapse of excavated faces will not be measured and the cost thereof shall be deemed to be included in the allowance for taking the risk of collapse of the sides of the excavations, provision for which is made in Earthworks.",null,0]
[]
[3,2,59,null,"CONCRETE","H2",0]
[]
[3,2,59,null,"(CPAP WORK GROUP NO. 110) unless otherwise stated","H3",0]
[]
[3,2,60,null,"REINFORCED CONCRETE CAST AGAINST EXCAVATED SURFACES","H2",0]
[]
[3,2,60,null,"25MPa/19mm concrete:","H3",0]
[]
[3,2,60,1,"Surface beds on waterproofing","m3",11,null,{"$f":"+G668*H668","v":{"v":0,"d":"0.00"}}]
[]
[3,2,60,null,"TEST BLOCKS","H2",0]
[]
[3,2,60,null,"Test blocks:","H3",0]
[]
[3,2,60,2,"Making and testing set of three 150x150x150mm concrete strength test cubes (Provisional).","No",2,null,{"v":0,"d":"0.00"}]
[]
[3,2,60,null,"FINISHING TOP SURFACE OF CONCRETE","H2",0]
[]
[3,2,60,null,"Finishing top surfaces of concrete smooth with a wood float:","H3",0]
[]
[3,2,60,3,"Surface beds, slabs, etc","m2",113,null,{"v":0,"d":"0.00"}]
[]
[3,2,60,null,"FORMWORK","H2",0]
[]
[3,2,60,null,"(CPAP WORK GROUP NO. 111) unless otherwise stated","H3",0]
[]
[3,2,60,null,"ROUGH FORMWORK (DEGREE OF ACCURACY III)  ","H2",0]
[]
[3,2,60,null,"Rough Formwork to Sides:","H3",0]
[]
[3,2,60,4,"Edges, risers, ends and reveals not exceeding 300mm high or wide.","m",30,null,{"v":0,"d":"0.00"}]
[]
[3,2,60,null,"MOVEMENT JOINTS ETC","H2",0]
[]
[3,2,60,null,"Expansion joints with bitumen impregnated softboard between vertical concrete or brick surfaces:","H3",0]
[]
[3,2,60,5,"10mm Joints not exceeding 300mm high (Provisional).","m",30,null,{"v":0,"d":"0.00"}]
[]
[3,2,61,null,"Saw cut joints:","H3",0]
[]
[3,2,61,6,"6 x 40mm Saw cut joints in top of concrete.","m",30,null,{"v":0,"d":"0.00"}]
[]
[3,2,61,null,"REINFORCEMENT (PROVISIONAL)","H2",0]
[]
[3,2,61,null,"(CPAP WORK GROUP NO. 114) unless otherwise stated","H3",0]
[]
[3,2,61,null,"Fabric reinforcement:","H3",0]
[]
[3,2,61,7,"REF. 193 fabric reinforcement in concrete surface beds, slabs, etc.","m2",113,null,{"$f":"+G708*H708","v":{"v":0,"d":"0.00"}}]
[]
[3,2,{"$nulls":4},0,null,{"$f":"SUM(I667:I709)","v":{"v":0,"d":"0.00"}}]
[]
[3,3,63,null,"SECTION No. 3","H1",0]
[]
[3,3,63,null,"BILL No. 3 : MASONRY","H1",0]
[]
[3,3,63,null,"MODEL PREAMBLES","H2",0]
[]
[3,3,63,null,"The tenderer is referred to the \"Model Preambles for Trades 2008\" for supplementary and comprehensive expansion of descriptions, appropriate provision for which shall be deemed to have been included in all relevant rates",null,0]
[]
[3,3,63,null,"SUPPLEMENTARY PREAMBLES","H2",0]
[]
[3,3,63,null,"BRICKWORK","H2",0]
[]
[3,3,63,null,"(CPAP WORK GROUP NO. 116 UNLESS OTHERWISE STATED)","H2",0]
[]
[3,3,63,null,"Sizes in descriptions","H3",0]
[]
[3,3,63,null,"Where sizes in descriptions are given in brick units, \"one brick\" shall represent the length and \"half brick\" the width of a brick",null,0]
[]
[3,3,63,null,"Bricks","H3",0]
[]
[3,3,63,null,"Clay & concrete bricks are to comply with N.H.B.R.C Part 2, Section 3",null,0]
[]
[3,3,63,null,"Hollow walls etc ","H3",0]
[]
[3,3,63,null,"Descriptions of hollow walls shall be deemed to include leaving every fifth perpend of the bottom course of the external skin open as a weep hole. ",null,0]
[]
[3,3,64,null,"Walls in two skins described as \"bagged and sealed\" shall be deemed to include having the outer face of the inner skin bagged with 1:6 cement and sand mixture and sealed with two coats \"Brixeal\" bitumen emulsion waterproofing coating.",null,0]
[]
[3,3,64,null,"Pointing","H3",0]
[]
[3,3,64,null,"All pointing of exposed joints to be concave",null,0]
[]
[3,3,64,null,"Samples","H3",0]
[]
[3,3,64,null,"Samples of all masonry building units, except those of walls described as \"loadbearing\", shall consist of a minimum of 6 units. Samples of building units to be used in walls described as \"loadbearing\" shall consist of 30 units from every 30 000 units delivered to site",null,0]
[]
[3,3,64,null,"BLOCKWORK","H2",0]
[]
[3,3,64,null,"Concrete masonry units","H3",0]
[]
[3,3,64,null,"Blocks are to be either solid or hollow modular dense concrete masonry units having a compressive strength of 7 MPa",null,0]
[]
[3,3,64,null,"Wall ties for blockwork","H3",0]
[]
[3,3,64,null,"Wall ties shall be polypropylene \"Permaties\" complying with BS 76377.  Ties for hollow walls shall be of sufficient length to allow not less than 75mm of each end to be built into the blockwork.  Ties are to be spaced at intervals of not more than 1m in the horizontal direction and not more than 400mm staggered in the vertical direction except at openings, vertical joints or ends of walls where they are to be placed vertically above each other",null,0]
[]
[3,3,64,null,"Blockwork ","H3",0]
[]
[3,3,64,null,"Blockwork shall comply with SABS 0145 \"Concrete Masonry Construction\" ",null,0]
[]
[3,3,65,null,"Surfaces to be plastered shall have joints raked out to a depth of at least 10mm to provide a key.  Cavities of hollow walls shall be kept free of mortar droppings or other undesirable matter. Every second perpend of the bottom course of the external skin of hollow walls shall be left open as a weep hole",null,0]
[]
[3,3,65,null,"Standard complementary blocks","H3",0]
[]
[3,3,65,null,"Descriptions of blockwork shall be deemed to include standard complementary blocks such as corner, three-quarter, half and quarter blocks required in the construction of corners, reveals, jambs, ends, etc to solid and hollow walls and for bonding as necessary",null,0]
[]
[3,3,65,null,"SUPERSTRUCTURE","H2",0]
[]
[3,3,65,null,"Brickwork of NFP bricks in class II mortar","H3",0]
[]
[3,3,65,1,"Half brick walls in beamfilling","m2",16,null,{"$f":"+G772*H772","v":{"v":0,"d":"0.00"}}]
[]
[3,3,65,2,"One brick walls","m2",37,null,{"v":0,"d":"0.00"}]
[]
[3,3,65,null,"3,5MPa Cement blocks in class II mortar","H3",0]
[]
[3,3,65,3,"M140 Block wall in beamfilling ","m2",104,null,{"v":0,"d":"0.00"}]
[]
[3,3,66,4,"M140 block walls ","m2",58,null,{"v":0,"d":"0.00"}]
[]
[3,3,66,null,"BRICKWORK SUNDRIES","H2",0]
[]
[3,3,66,null,"Galvanized brickwork reinforcement","H3",0]
[]
[3,3,66,5,"75mm Wide reinforcement built in horizontally","m",2455,null,{"v":0,"d":"0.00"}]
[]
[3,3,66,null,"15MPa Mass concrete ","H3",0]
[]
[3,3,66,6,"Infill to single row of M140 U block blockwork","m",330,null,{"v":0,"d":"0.00"}]
[]
[3,3,66,null,"Galvanised hoop iron cramps, ties, etc","H3",0]
[]
[3,3,66,7,"30 x 1,6mm Roof tie 1,5m long with one end fixed to timber and other end cast into concrete","No",135,null,{"v":0,"d":"0.00"}]
[]
[3,3,66,null,"FACE BRICKWORK","H2",0]
[]
[3,3,67,null,"Approved face bricks pointed with recessed horizontal and vertical joints","H3",0]
[]
[3,3,67,8,"Extra over brickwork for face brickwork","m2",53,null,{"v":0,"d":"0.00"}]
[]
[3,3,{"$nulls":4},0,null,{"$f":"SUM(I771:I801)","v":{"v":0,"d":"0.00"}}]
[]
[3,4,69,null,"SECTION No. 3","H1",0]
[]
[3,4,69,null,"BILL No. 4 : ROOF COVERINGS","H1",0]
[]
[3,4,69,null,"MODEL PREAMBLES","H2",0]
[]
[3,4,69,null,"The tenderer is referred to the \"Model Preambles for Trades 2008\" for supplementary and comprehensive expansion of descriptions, appropriate provision for which shall be deemed to have been included in all relevant rates",null,0]
[]
[3,4,69,null,"SUPPLEMENTARY PREAMBLES","H2",0]
[]
[3,4,69,null,"Sheeting","H3",0]
[]
[3,4,69,null,"The roof sheeting shall be 0,55mm AZ150 ZincAl or equal approved IBR 686 profile roll-formed in continuous lengths and cut to length by a pneumatic cut-off process from certified Z275 galvanized steel complying with ISQ 550 (3T). A certificate verifying compliance shall be issued by the manufacturer. ",null,0]
[]
[3,4,69,null,"Finish for AZ150 Zincalume","H3",0]
[]
[3,4,69,null,"The profile shall be supplied with a paint finish G550 consisting of a full top coat \"Colourplus\" or equal approved silicone modified polyester Colour: To match existing on one side and Cool Grey backing to other",null,0]
[]
[3,4,70,null,"Assembly","H3",0]
[]
[3,4,70,null,"The AZ150 ZincAl sheets shall be fixed to every purlin strictly in accordance with manufacturer's specifications. Holes through sheeting are to be drilled and NO punching of holes are allowed. 8mm Diameter x 75mm long fixing screws with 26mm diameter washer and rubber gasket are to be used. Every precaution shall be taken to prevent damage to roof sheets during all stages of construction. Duck boards should be used when necessary to protect the sheeting from damage. Sheeting which has become deformed or damaged in any way, shall be replaced",null,0]
[]
[3,4,70,null,"Flashings","H3",0]
[]
[3,4,70,null,"Flashings shall be approved by roof sheeting manufacturer and fixed to the sheeting with S10 clips to obviate any direct fixing perforations. Prior to flashings being fixed, all troughs at the apex shall be stop-ended to the full depth of the sheet in order to prevent any penetration of wind drived water. The trough shall be lipped at the eaves end to form a drip. Flashing flanges shall be notched to the sheet profile where necessary. All these operations must be performed with special tools available from the manufacturer. Care shall be taken to ensure that no sheeting or flashing will be cut with abrasive disc on roof surface in order to prevent steel splatter from penetrating colour coated areas. The flashings shall be supplied with a paint finish consisting of a full top coat silicon modified polyester Colour : White to one side",null,0]
[]
[3,4,70,null,"Quality Assurance","H3",0]
[]
[3,4,70,null,"The manufacturer shall be assessed and certifed as complying with ISO 9001: 2008 Quality Management System",null,0]
[]
[3,4,71,null,"Guarantee","H3",0]
[]
[3,4,71,null,"AZ150 ZincAl or equal approved sheeting shall be laid in strict accordance with manufacturer's specifications by an approved contractor. The employer shall be provided with a ten year written guarantee on materials and a five year written guarantee on workmanship and water-tightness after final inspection of the roofs, by the manufacturer.  ",null,0]
[]
[3,4,71,null,"Safety","H3",0]
[]
[3,4,71,null,"The contractor shall exercise special care when handling long length sheeting, particularly in windy conditions. Should work be interrupted for any reason, all loose sheeting and incomplete sections must be adequately secured against possible movement by wind and gravity",null,0]
[]
[3,4,71,null,"Handling and Storage","H3",0]
[]
[3,4,71,null,"The contractor shall ensure that all materials used on site for cladding, etc are transported, handled and stored in accordance with the manufacturer's recommendations. Material damaged shall be rejected and replaced with undamaged material at the contractor's expense. Repair of damaged material will not generally be permitted. Rates are to include for preventing damage and protecting sheets through all stages of construction",null,0]
[]
[3,4,72,null,"Inspection Prior to Installation or Erection","H3",0]
[]
[3,4,72,null,"Before commencing with installation, the contractor shall verify that the following items have been checked and accepted: a. The entire structure or the portion thereof to be sheeted has been correctly aligned, levelled and grouted b. Purlins and sheeting rails are at the correct spacing and are within the specified tolerances c. The corners of the roof are square and the wall framework is perpendicular or as specified d. No protrusions such as bolt heads, splice plates, cleats, etc. appear on the face of the framework e. All members to which roofing and cladding are to be fixed in aesthetically sensitive areas are true and square f. Paint and any other materials that may be incompatible with the sheeting, have been painted over or so dealt with that direct contact with the sheeting is avoided g. The contact faces between the purlins or the girts and the cladding are in the same plane. Should the alignment be inadequate, the contractor shall request instructions from the engineer before proceeding with the fixing of the cladding",null,0]
[]
[3,4,72,null,"Protrusion through Sheeted Surfaces","H3",0]
[]
[3,4,72,null,"Protrusions such as pipes, ducts and the like, shall be adequately flashed where they pass through the sheeting surface. Where ribs have to be cut away to permit penetration, additional framing is to be installed as required to support the sheeting. Depending on the position of the penetration through the roof, special attention shall be given to back flashing the sheeting to the ridge or point of water entry. In all cases, all cutting and flashings shall be so arranged that adequate provision is made for the drainage of all troughs and corrugation ",null,0]
[]
[3,4,73,null,"Cleaning of Roofs, etc","H3",0]
[]
[3,4,73,null,"All debris, etc arising from the fixing of the cladding shall be removed from the sheetin as the fixing progresses. In addition, off-cuts of insulation, surplus fastners and sealants, mandrels from pop rivets, off-cuts of flashings and sheeting, surplus flashing, food packaging, cartons, bottles, cans, etc shall not be  left on the roof or in the gutters. Care shall be taken to ensure that no such material enters, blocks or partially impedes the flow of water into the outlets, downpipes, etc",null,0]
[]
[3,4,73,null,"ROOF COVERING","H2",0]
[]
[3,4,73,null,"(CPAP WORK GROUP NO. 125 UNLESS OTHERWISE STATED)","H2",0]
[]
[3,4,73,null,"PROFILED METAL SHEETING AND ACCESSORIES","H2",0]
[]
[3,4,73,null,"0,55mm Zincalume IBR 686 sheeting and accessories with \"Colorplus\"  finish (colour : Standard colour on one side and CoolGrey backing to other), in long lengths fixed using Class 3 Climaseal screws (8mm diameter with 26mm diameter washer and rubber gasket) as per manufacturer's recommendations for coastal areas to 50 x 76mm treated SA Pine purlins @ 1 100mm centres on Sisalation elsewhere measured ","H3",0]
[]
[3,4,73,1,"Corrugated metal roof sheeting, including timber purlins, underlay etc.","m2",2072,null,{"$f":"+G866*H866","v":{"v":0,"d":"0.00"}}]
[]
[3,4,73,2,"Ridge covering 650mm girth, screwed through sheet to purlins","m",217,null,{"v":0,"d":"0.00"}]
[]
[3,4,74,3,"Color coded metal angle flashing made from the same roofing sheet material and the same color with size 200 x 100mm and inner drip edges as well as outer drip edge, bent at 2.5 degrees respectively, fixed to fascia through the roof sheeting to the purlins.  ","m",196,null,{"v":0,"d":"0.00"}]
[]
[3,4,74,4,"Side wall flashing 308mm girth 1 times bent, screwed through sheet to purlins","m",63,null,{"v":0,"d":"0.00"}]
[]
[3,4,74,5,"Moulded narrow and broad rib polyethelene filler blocks","m",450,null,{"v":0,"d":"0.00"}]
[]
[3,4,74,6,"Moulded Sondor Metal Polyclosures for IBR roof sheeting profile color coated. ","m",450,null,{"v":0,"d":"0.00"}]
[]
[3,4,74,null,"ROOF AND WALL INSULATION","H2",0]
[]
[3,4,75,null,"\"Sisalation 420\"  or equal approved heavy industrial grade aluminium foil based insulation","H3",0]
[]
[3,4,75,7,"Insulation laid taut over rafters (at approximately 1 200mm centres) and fixed concurrent with purlins, etc including galvanised steel straining wires","m2",1796,null,{"v":0,"d":"0.00"}]
[]
[3,4,75,8,"Allow for insulation joints to be taped with approved Sisalation Duct tape","Item",1,null,{"v":0,"d":"0.00"}]
[]
[3,4,{"$nulls":4},0,null,{"$f":"SUM(I865:I885)","v":{"v":0,"d":"0.00"}}]
[]
[3,5,77,null,"SECTION No. 3","H1",0]
[]
[3,5,77,null,"BILL No. 5 : CARPENTRY & JOINERY","H1",0]
[]
[3,5,77,null,"MODEL PREAMBLES","H2",0]
[]
[3,5,77,null,"The tenderer is referred to the \"Model Preambles for Trades 2008\" for supplementary and comprehensive expansion of descriptions, appropriate provision for which shall be deemed to have been included in all relevant rates",null,0]
[]
[3,5,77,null,"CARPENTRY AND JOINERY","H2",0]
[]
[3,5,77,null,"(CPAP WORK GROUP NO. 126 UNLESS OTHERWISE STATED)","H2",0]
[]
[3,5,77,null,"SUPPLEMENTARY PREAMBLES","H2",0]
[]
[3,5,77,null,"ROOFS ETC","H3",0]
[]
[3,5,77,null,"MONOPLANAR PREFABRICATED METAL CONNECTORED TIMBER ROOF TRUSSES","H4",0]
[]
[3,5,77,null,"All trusses to be fabricated in a factory by a truss fabricator who holds a current Certificate of Competence awarded by the Institute for Timber Construction  TR1 & TR2 Certificates are to be issued for each Block before occupation may take place",null,0]
[]
[3,5,78,null,"PREFABRICATED ROOF TRUSSES HAVING A PITCH NOT EXCEEDING 25 DEGREES ","H4",0]
[]
[3,5,78,null,"NOTE: All timber roof trusses including nail-plated trusses and bolted trusses with lapped members must comply with SABS 0243 : THE DESIGN, MANUFACTURE AND ERECTION OF TIMBER TRUSSES",null,0]
[]
[3,5,78,null,"Prices for roof trusses are to include for all temporary bracing and supports and for all necessary top and bottom chord bracing, wind bracing and runners where required and TR1 and TR2 Certificates",null,0]
[]
[3,5,78,null,"TIMBER","H4",0]
[]
[3,5,78,null,"Timber for trusses to be South African softwood structural timber and shall be at least of grade 4 and in accordance with SABS Specification No.'s 563 or 1245 or laminated timber in accordance with SABS 1460",null,0]
[]
[3,5,78,null,"METAL CONNECTOR PLATES","H4",0]
[]
[3,5,78,null,"Metal truss connector plates shall be made from galvanised steel of at least 1mm nominal thickness, with a minimum yield strength of 250MPa and a minimum ultimate tensile strength of 330MPa. The corrosion resisting coating shall be 0,275Kg/m2 commercial class hot dipped galvanising  The connector plates shall have been tested by the CSIR and be a size capable of transmitting the forces between the members of a truss without exceeding the design values given in the CSIR report",null,0]
[]
[3,5,78,null,"BOLTS","H4",0]
[]
[3,5,78,null,"Bolts shall be to BS 4190 or SABS 135 with appropriate washers. (See below)",null,0]
[]
[3,5,79,null,"WASHERS","H4",0]
[]
[3,5,79,null,"Square or round washers of the following minimum dimensions shall be used with all bolts:                    WASHER DIMENSIONS  Bolts Size            Width (mm)           Thickness   up to M8"]
[]
[3,5,79,null,"SHEAR PLATES, TOOTH CONNECTORS AND SPLIT RINGS","H4",0]
[]
[3,5,79,null,"These shall be as specified in BS 1579 and installed in accordance with the CSIR Publication : HOUT 468, \"The Design, Manufacture and Erection of Timber Trusses\".",null,0]
[]
[3,5,79,null,"NAILS","H4",0]
[]
[3,5,79,null,"These shall be in accordance with SABS 820 : 1974",null,0]
[]
[3,5,79,null,"TRUSS CONSTRUCTION","H4",0]
[]
[3,5,79,null,"The trusses shall be constructed to ensure the correct profile, overhangs and cambers  All joints are to be close fitting butt joints made by precision pressing of the metal connector plates into each side of the joint  ",null,0]
[]
[3,5,79,null,"TRUSS DESIGN","H4",0]
[]
[3,5,79,null,"All trusses shall be designed by a registered Professional Engineer employed by the Contractor in accordance with the SABS Code of Practice for the Design of Timber Structures SABS 0163 and the Code of Practice for General Procedures and Loadings SABS 0160",null,0]
[]
[3,5,79,null,"TRUSS SPACING","H4",0]
[]
[3,5,79,null,"The truss centres shall be less than or equal to that described in the Bills for each respective truss type",null,0]
[]
[3,5,80,null,"DRAWINGS","H4",0]
[]
[3,5,80,null,"Prints shall be provided to the consulting engineer/ architect for approval. These drawings shall be signed by a Professional Engineer  The following minimum information shall be supplied: * Details of the roof system with the positions of all trusses and beams clearly indicated * Bracing details * All truss details, including valley trusses where applicable, with the following clearly detailed:- =- All member sizes and grades - Connector plate sizes for all truss joints, Code numbers are deemed sufficient * All connection and hold down details between trusses, girders, beams and supports * The type of roof covering, ceiling and any other loads taken into account in the design"]
[]
[3,5,80,null,"The dimensions in the descriptions of trusses are nominal and verification measurements are to be obtained from site before design or fabrication commences, and must be designed in accordance with the environmental conditions of the area"]
[]
[3,5,80,null,"GENERAL","H4"]
[]
[3,5,80,null,"The following schedule of prices includes all timber of the required grade and type shown on the designs, all cutting and waste, cutting to exact length and end angles necessary to manufacture the respective truss types, the supply of all connector plates, fabrication of the trusses, checking the completed truss for quality, as well as loading, transporting to the site and offloading  The trusses must be suitable stored and protected on site as directed by the Secretary or his Representative",null,0]
[]
[3,5,81,null,"ERECTION","H4",0]
[]
[3,5,81,null,"The trusses are to be hoisted and erected strictly in accordance with the procedures and recommendations of the Manual \"The Erection and Bracing of Timber Roof Trusses\" published by the Institute for Timber Construction and the Council for Scientific and Industrial Research of as detailed by the designer of the SABS Code of Practice: \"The Design, Manufacture and Erection of Timber Roof Trusses\"",null,0]
[]
[3,5,81,null,"TRUSS LOADING","H4",0]
[]
[3,5,81,null,"The trusses shall be designed for:* Roof Cover:   0,55mm Metal roof sheeting* Max Purlin centres:   900mm * Ceilings:    Plasterboard ceilings * Overhang:    Min 600mm"]
[]
[3,5,82,null,"TRUSSES","H4",0]
[]
[3,5,82,null,"a. All the roof trusses to be at average 1 177mm centres and constructed for approximable 25deg pitch unless otherwise stated  b. All the roof trusses to be designed and constructed with softwood structural timber to include for live loads, wind loads and to take corrugated roof covering, purlins and fibre cement or plasterboard ceilings with brandering. Each roof truss shall have all its members accurately cut and close butted together and rigidly fixed by CSIR approved patented galvanized metal spiked connectors, fixed on both sides of each intersection by an approved method, all in accordance with the manufacturer's instructions  c. Unless otherwise described all rafter feet are to extend 600mm beyond the length of the tie beam, with ends twice splay cut  d. Upon completion of the contract the Registered Professional Engineer must issue to the Principal Agent a certificate to the effect that the roof has been erected in accordance with his approved design, under his supervision and that the entire roof is structurally stable. The lump sum price of the roof trusses and purlins or battens (bottom purlin or tilting fillet to be wrought) shall include for the design and supervision by a Registered / Professional Engineer and for all necessary runners, overhangs wrought all round and trimmed and splay cut as required, braces, hoisting and fixing, etc.,but shall exclude fixing brackets and hurricane clips, wall plates, fascia, barge boards, roof coverings, purlins, etc. which are all separately measured",null,0]
[]
[3,5,83,null,"e. The tenderer's attention is drawn to the fact that the description of the trusses only represents the overall size (fascia to fascia) and not the required design  f. Erection must be carried out as described in \"The Erection and Bracing of Timber Roof Trusses\" published by the Truss Plate Association of South Africa Ltd. and the National Timber Research Institute, CSIR  g. Descriptions of roof trusses shall be deemed to include for design, manufacture, supply, hoisting and fixing in position, trimming ends, notching, etc. and for any temporary bracing",null,0]
[]
[3,5,83,null,"Plate nailed pitched timber roof construction","H3",0]
[]
[3,5,83,null,"Sawn Softwood","H3",0]
[]
[3,5,83,1,"Design, supply and install roof truss system complete in accordance with the Standard Building Regulations to suit roof area approximate size 445m2 (measured on flat floor area inclusive of overhangs, etc) - Block A","Item",1,null,{"$f":"+G978*H978","v":{"v":0,"d":"0.00"}}]
[]
[3,5,83,2,"Design, supply and install roof truss system complete in accordance with the Standard Building Regulations to suit roof area approximate size 330m2 (measured on flat floor area inclusive of overhangs, etc) - Block B","Item",1,null,{"v":0,"d":"0.00"}]
[]
[3,5,84,3,"Design, supply and install roof truss system complete in accordance with the Standard Building Regulations to suit roof area approximate size 364m2 (measured on flat floor area inclusive of overhangs, etc) - Block C","Item",1,null,{"v":0,"d":"0.00"}]
[]
[3,5,84,4,"Design, supply and install roof truss system complete in accordance with the Standard Building Regulations to suit roof area approximate size 304m2 (measured on flat floor area inclusive of overhangs, etc) - Block D","Item",1,null,{"v":0,"d":"0.00"}]
[]
[3,5,84,5,"Design, supply and install roof truss system complete in accordance with the Standard Building Regulations to suit roof area approximate size 330m2 (measured on flat floor area inclusive of overhangs, etc) - Block E","Item",1,null,{"v":0,"d":"0.00"}]
[]
[3,5,84,6,"Design, supply and install roof truss system complete in accordance with the Standard Building Regulations to suit roof area approximate size 25m2 (measured on flat floor area inclusive of overhangs, etc) - Block J","Item",1,null,{"v":0,"d":"0.00"}]
[]
[3,5,85,7,"Design, supply and install roof truss system complete in accordance with the Standard Building Regulations to suit roof area approximate size 25m2 (measured on flat floor area inclusive of overhangs, etc) - Block K","Item",1,null,{"v":0,"d":"0.00"}]
[]
[3,5,85,8,"Design, supply and install roof truss system complete in accordance with the Standard Building Regulations to suit roof area approximate size 39m2 (measured on flat floor area inclusive of overhangs, etc) - Block L","Item",1,null,{"v":0,"d":"0.00"}]
[]
[3,5,85,9,"76 x 114mm false rafter fixed to rafter ends to receive fascia boards (elsewhere)","m",521,null,{"v":0,"d":"0.00"}]
[]
[3,5,85,10,"76 x 114mm false rafter fixed to rafter ends to receive barge boards (elsewhere measured ","m",217,null,{"v":0,"d":"0.00"}]
[]
[3,5,85,11,"38 x 114mm Timber rafter","m",32,null,{"v":0,"d":"0.00"}]
[]
[3,5,86,12,"Valley boarding comprising of two 38 x 114mm boards 4mm torch on waterproofing and 1,2mm galvanized mild steel valley lining installed complete","m",21,null,{"v":0,"d":"0.00"}]
[]
[3,5,86,13,"76 x 50mm Purlins","m",2098,null,{"v":0,"d":"0.00"}]
[]
[3,5,86,14,"76 x 50mm Cross bracing","m",453,null,{"v":0,"d":"0.00"}]
[]
[3,5,86,null,"Sundries","H3",0]
[]
[3,5,86,15,"50 x 185mm x 1mm thick Mitek eCo galvanised steel long truss hanger, fixed to tie beam with 35mm x 3,15mm diameter MiTek eCo Permafix mild steel collar nails and fixed to concrete filled blockwork with 4 x M12 chemical anchors","No",276,null,{"v":0,"d":"0.00"}]
[]
[3,5,86,16,"Hurricane clips","No",3276,null,{"v":0,"d":"0.00"}]
[]
[3,5,87,17,"Prior to the erection of all the roof trusses the consulting engineer shall certify that he has received such working drawings and construction detail designs from the professional engineer employed by the contractor and that he has considered same and given permission to proceed with the fabrication of the trusses (TR1 certificate issued by Contractor's Engineer) and then before the roof covering commences the completed structure shall be inspected and certifed as stable by the professional engineer employed by the contractor to ensure that the manufacture of the trusses and erection details have been complied with to his satisfaction (TR2 certificate issued by Contractor's Engineer) per block. ","Item",1,null,{"v":0,"d":"0.00"}]
[]
[3,5,87,null,"EAVES, VERGES, ETC","H2",0]
[]
[3,5,87,null,"Approved fibre cement","H3",0]
[]
[3,5,87,18,"12 x 225mm Fascias to match existing including H-profile jointing strips","m",461,null,{"v":0,"d":"0.00"}]
[]
[3,5,87,19,"12 x 225mm fascia barge board screwed to 44 x 70mm treated SA Pine trimmer and including H-profile jointing strips","m",193,null,{"v":0,"d":"0.00"}]
[]
[3,5,87,20,"50 x 50mm Eaves closer purlins","m",77,null,{"$f":"+G1022*H1022","v":{"v":0,"d":"0.00"}}]
[]
[3,5,88,null,"DOORS ETC","H2",0]
[]
[3,5,88,null,"Contractor to confirm door size on site prior to purchasing as any adjustment required to be made to the doors should be made by the manufacturer and not carried out on site",null,0]
[]
[3,5,88,null,"SANS approved Meranti","H3",0]
[]
[3,5,88,21,"44mm Framed ledged braced door with 44 x 146mm top rail and stiles, 22 x 108mm braces, 22 x 146mm lock rail, 22 x 222mm bottom rail, 22 x 70mm tongue in groove and v-jointed boarding Size 813 x 2 032mm high","No",36,null,{"v":0,"d":"0.00"}]
[]
[3,5,{"$nulls":4},0,null,{"$f":"SUM(I977:I1031)","v":{"v":0,"d":"0.00"}}]
[]
[3,6,90,null,"SECTION No. 3","H1",0]
[]
[3,6,90,null,"BILL No. 6 : CEILINGS, PARTITIONS & ACCESS FLOORING","H1",0]
[]
[3,6,90,null,"MODEL PREAMBLES","H2",0]
[]
[3,6,90,null,"The tenderer is referred to the \"Model Preambles for Trades 2008\" for supplementary and comprehensive expansion of descriptions, appropriate provision for which shall be deemed to have been included in all relevant rates",null,0]
[]
[3,6,90,null,"SUPPLEMENTARY PREAMBLES","H2",0]
[]
[3,6,90,null,"Descriptions:","H3",0]
[]
[3,6,90,null,"Items described as \"nailed\" shall be deemed to be fixed with hardened steel nails or pins or shot pinned to brickwork or concrete",null,0]
[]
[3,6,90,null,"Trade Names","H3",0]
[]
[3,6,90,null,"Where trade names are specified equal materials approved by the Principal Agent may be used",null,0]
[]
[3,6,90,null,"CEILINGS","H2",0]
[]
[3,6,90,null,"(CPAP WORK GROUP NO. 128 UNLESS OTHERWISE STATED)","H2",0]
[]
[3,6,90,null,"CEILING AND WALL INSULATION","H2",0]
[]
[3,6,91,null,"Flexible non-combustible lightweight insulation","H3",0]
[]
[3,6,91,1,"100mm  Insulation loosely laid on top of brandering between roof timbers etc strictly in accordance with the manufacturer's detail and specification","m2",1458,null,{"v":0,"d":"0.00"}]
[]
[3,6,91,null,"NAILED UP CEILINGS","H2",0]
[]
[3,6,91,null,"6,4mm approved gypsum plasterboard with taped & skimmed joints","H3",0]
[]
[3,6,91,2,"Ceilings including 38 x 38mm sawn softwood brandering at 400mm centres in both directions, fixed to 38 x 38mm vertical timber supports bolted to truss, not exceeding 1m below timber trusses","m2",1458,null,{"v":0,"d":"0.00"}]
[]
[3,6,91,3,"Extra over ceiling for  850  x  850mm trap door","No",23,null,{"v":0,"d":"0.00"}]
[]
[3,6,91,null,"Gypsum Plasterboard Cornice","H3",0]
[]
[3,6,91,4,"75mm Coved cornice","m",769,null,{"v":0,"d":"0.00"}]
[]
[3,6,{"$nulls":4},0,null,{"$f":"SUM(I1059:I1073)","v":{"v":0,"d":"0.00"}}]
[]
[3,7,93,null,"SECTION No. 3","H1",0]
[]
[3,7,93,null,"BILL No. 7 : IRONMONGERY","H1",0]
[]
[3,7,93,null,"MODEL PREAMBLES","H2",0]
[]
[3,7,93,null,"The tenderer is referred to the \"Model Preambles for Trades 2008\" for supplementary and comprehensive expansion of descriptions, appropriate provision for which shall be deemed to have been included in all relevant rates",null,0]
[]
[3,7,93,null,"SUPPLEMENTARY PREAMBLES","H2",0]
[]
[3,7,93,null,"Keys/Locks","H3",0]
[]
[3,7,93,null,"Each lock is to be distinctly numbered with consecutive numbers and each key is to be stamped with the corresponding number to the lock that it controls. All locks are to have two keys",null,0]
[]
[3,7,93,null,"Trade Names","H3",0]
[]
[3,7,93,null,"Where trade names are specified other ironmongery approved by the Principal Agent may be used",null,0]
[]
[3,7,93,null,"Fixing","H3",0]
[]
[3,7,93,null,"Fixing of ironmongery is deemed to be fixed to timber unless otherwise described",null,0]
[]
[3,7,93,null,"IRONMONGERY","H2",0]
[]
[3,7,93,null,"(CPAP WORK GROUP NO. 132 UNLESS OTHERWISE STATED)","H2",0]
[]
[3,7,94,null,"HINGES, BOLTS, ETC","H2",0]
[]
[3,7,94,1,"150mm Stainless steel cabin hook","No",19,null,{"$f":"+G1104*H1104","v":{"v":0,"d":"0.00"}}]
[]
[3,7,94,2,"AS anodised aluminium Water closet indicator bolt.","No",23,null,{"v":0,"d":"0.00"}]
[]
[3,7,94,null,"LOCKS","H2",0]
[]
[3,7,94,3,"Three lever mortice lockset and furniture to external door","No",36,null,{"v":0,"d":"0.00"}]
[]
[3,7,94,null,"WINDOW FITTINGS","H2",0]
[]
[3,7,94,4,"Brass plated sliding stay to existing steel window ","No",33,null,{"v":0,"d":"0.00"}]
[]
[3,7,94,5,"Brass plated casement stay to existing steel window ","No",22,null,{"v":0,"d":"0.00"}]
[]
[3,7,95,6,"Brass plated window handle to existing steel window ","No",44,null,{"v":0,"d":"0.00"}]
[]
[3,7,95,null,"PINNING BOARDS, WRITING BOARDS, PROJECTION SCREENS, ETC","H2",0]
[]
[3,7,95,7,"2400 x 1200mm High, wall mounted aluminium framed pinning board. ","No",17,null,{"v":0,"d":"0.00"}]
[]
[3,7,95,8,"2420 x 1220mm fixed projection white board (non reflective) aluminium framed, magnetic surface (centre board) complete with (x2) 1210 x 1220mm swing leaf aluminium framed magnetic chalk boards (without any lines or graphics, etc) with heavy duty hinges and 2250mm one complete aluminium pen tray to the centre board.","No",12,null,{"v":0,"d":"0.00"}]
[]
[3,7,96,9,"Magnetic Starter Pack (x1 Full Complete Set) consisting of:  4 x White board markers (Red, Green, Black, Blue) 1 x Cleaning Cloth 1 x Magnetic Eraser 1 x Cleaning Fluid 250ml 4 x Moulded magnets d day","No",12,null,{"v":0,"d":"0.00"}]
[]
[3,7,96,null,"SUNDRIES","H2",0]
[]
[3,7,96,10,"38mm Diameter rubber floor/wall mounted door stop ","No",36,null,{"v":0,"d":"0.00"}]
[]
[3,7,96,null,"PUSH PLATES AND KICKING PLATES","H2",0]
[]
[3,7,96,null,"\"Solid\"","H3",0]
[]
[3,7,96,11,"800mm x 200mm high x 2mm aluminium screw mounted kick plate. ","No",72,null,{"v":0,"d":"0.00"}]
[]
[3,7,{"$nulls":4},0,null,{"$f":"SUM(I1103:I1137)","v":{"v":0,"d":"0.00"}}]
[]
[3,8,98,null,"SECTION No. 3","H1",0]
[]
[3,8,98,null,"BILL No. 8 : METALWORK","H1",0]
[]
[3,8,98,null,"MODEL PREAMBLES","H2",0]
[]
[3,8,98,null,"The tenderer is referred to the \"Model Preambles for Trades 2008\" for supplementary and comprehensive expansion of descriptions, appropriate provision for which shall be deemed to have been included in all relevant rates",null,0]
[]
[3,8,98,null,"SUPPLEMENTARY PREAMBLES","H2",0]
[]
[3,8,98,null,"The Contractor is to check and verify on site that the item specified in the BoQ matches existing prior to placing orders. Additional costs will not be borne by the client for items that do not match existing and are not approved by the Principal Agent",null,0]
[]
[3,8,98,null,"METALWORK","H2",0]
[]
[3,8,98,null,"(CPAP WORK GROUP NO. 136 UNLESS OTHERWISE STATED)","H2",0]
[]
[3,8,98,null,"GALVANIZED STEEL WINDOWS, DOORS, ETC","H2",0]
[]
[3,8,99,null,"Residential Type Windows","H3",0]
[]
[3,8,99,1,"D2H Window 1 022 x 1 245mm high to match existing with and including factory fitted burglar bars","No",9,null,{"$f":"+G1160*H1160","v":{"v":0,"d":"0.00"}}]
[]
[3,8,99,null,"GALVANIZED PRESSED STEEL DOOR FRAMES","H2",0]
[]
[3,8,99,null,"1,6mm galvanised mild steel standard pressed jamb lining with double rebates to suit one brick wall:","H3",0]
[]
[3,8,99,2,"Frame for door 813 x 2032mm high.","No",36,null,{"v":0,"d":"0.00"}]
[]
[3,8,99,null,"ROLLER SHUTTER DOORS","H2",0]
[]
[3,8,99,null,"Steel roller shutter doors:","H3",0]
[]
[3,8,99,null,"Note: The contractor is to check on site measurements before placing of order.","H4",0]
[]
[3,8,99,3,"Push-up hot dip galvanised steel roller shutter door to suit opening size 2,500 x 1,115mm high, with overhead box, with 0.8mm thick slats, 75mm wide side guides and two barrel bolts including extruded aluminium T-bar formed of 40 x 40mm angle iron, with rubber seal.","No",1,null,{"v":0,"d":"0.00"}]
[]
[3,8,99,null,"GALVANISED MILD STEEL GATES","H2",0]
[]
[3,8,100,null,"Gate constructed from hot-dipped galvanized mild steel, consisting of 40 x 30 x 2mm thick rectangular hollow section to outer frame and horizontal rails. Infill to be 8 No. continuous 10mm diameter galvanised mild steel rods passing through and welded to horizontal rails and welded to outer frame. Lock housing to be formed of (2 Off) 10 x 180 x 3mm galvanised mild steel plates welded to finish flush with each face of the gate and is to have the necessary cut-outs for the lock deadbolt and Euro Profile cylinder.Frame stile to hinge side to be 30 x 30 x 2mm thick galvanised mild steel hollow square section 2m long, bolted to wall with (4 Off) expansion bolts. 30 x 30 x 2mm thick galvanised mild steel hollow square section 260mm long, twice bolted to wall as lock keep. End caps to be provided to both the frame stile and the lock keep.1,5 pairs galvanised mild steel pintle hinges welded to gate and frame stile. Pin of top hinge to be inverted. (1 Off) N302 Union Euro Profile Cylinder Gate Lock with LH5240-N302 housing and 2 x 18SC Union double cylinder. (1 Off) Halstead 166SC cabin hook and eye with cabin hook screwed to 100 x 70 x 32mm Meranti block plugged and screwed to wall, and eye welded to leading edge of gate outer frameGate is to be cleaned down on completion and left unpainted","H3",0]
[]
[3,8,100,4,"Single gate size 1 000 x 2 000mm complete fixed to blockwork","No",33,null,{"v":0,"d":"0.00"}]
[]
[3,8,100,null,"GALVANIZED STEEL BURGLAR BARS","H2",0]
[]
[3,8,101,null,"4,7mm x 19mm galvanised mild steel burglar bars welded to window frame over both opening and fixed sections of window horizontally","H3",0]
[]
[3,8,101,5,"Bars at 150mm centres to suit window 1,0 x 1,25m high ","m",1058,null,{"v":0,"d":"0.00"}]
[]
[3,8,101,null,"GALVANISED MILD STEEL POSTS, ETC","H2",0]
[]
[3,8,101,null,"Posts","H3",0]
[]
[3,8,101,6,"75 x 75 x 3600mm High posts including base plates and slotted to suite beam","No",19,null,{"v":0,"d":"0.00"}]
[]
[3,8,101,null,"Sundries:","H3",0]
[]
[3,8,101,7,"10 x 180mm Mild steel bolts and nuts","No",76,null,{"v":0,"d":"0.00"}]
[]
[3,8,101,null,"PROVISIONAL SUMS","H2",0]
[]
[3,8,101,8,"Provide an amount of R120,000.00 (One Hundred and Twenty Thousand Rand) for the supply and install of one (1) smart interactive board (screen) to be installed in the team teaching or general multi-purpose classroom or standard classroom. ","Item",1,null,{"v":120000,"d":"120,000.00"}]
[]
[3,8,102,9,"Allow for profit and general attendance","%IT",1,null,{"$f":"I1200*H1202","v":{"v":0,"d":"0.00"}}]
[]
[3,8,102,10,"Provide an amount of R10,000.00 (Ten Thousand Rand) for training to be given on the functioning of the smart interactive screen.","Item",1,null,{"v":10000,"d":"10,000.00"}]
[]
[3,8,102,11,"Allow for profit and general attendance","%IT",1,null,{"$f":"I1204*H1206","v":{"v":0,"d":"0.00"}}]
[]
[3,8,{"$nulls":4},0,null,{"$f":"SUM(I1159:I1207)","v":{"v":130000,"d":"130,000.00"}}]
[]
[3,9,104,null,"SECTION No. 3","H1",0]
[]
[3,9,104,null,"BILL No. 9 : PLASTERING","H1",0]
[]
[3,9,104,null,"MODEL PREAMBLES","H2",0]
[]
[3,9,104,null,"The tenderer is referred to the \"Model Preambles for Trades 2008\" for supplementary and comprehensive expansion of descriptions, appropriate provision for which shall be deemed to have been included in all relevant rates",null,0]
[]
[3,9,104,null,"PLASTERING","H2",0]
[]
[3,9,104,null,"(CPAP WORK GROUP NO. 142 UNLESS OTHERWISE STATED)","H2",0]
[]
[3,9,104,null,"GRANOLITHIC","H2",0]
[]
[3,9,104,null,"Chip loose material away untill a dense uniform surface of concrete is obtained. Feathered edges shall be saw cut to form surfaces perpendicular to the concrete (minimum 20mm). All loose material and dust to be removed by water. The cavity shall then be filled with a non-shrink cementitious grout","H3",0]
[]
[3,9,104,1,"30mm Screed on floors in patches","m2",21,null,{"$f":"+G1226*H1226","v":{"v":0,"d":"0.00"}}]
[]
[3,9,105,null,"Prepare and apply bonding liquid prior to laying granolithic finish composed of one part cement, two and a half parts concrete sand and three and a half parts granite or other approved hard stone chippings including filling in holes","H3",0]
[]
[3,9,105,2,"30mm Screed on new floors","m2",96,null,{"v":0,"d":"0.00"}]
[]
[3,9,105,null,"Prepare and apply bonding liquid prior to laying granolithic finish composed of one part cement, two and a half parts concrete sand and three and a half parts granite or other approved hard stone chippings including filling in holes","H3",0]
[]
[3,9,105,3,"30mm Screed on previously screeded floors","m2",255,null,{"v":0,"d":"0.00"}]
[]
[3,9,105,null,"INTERNAL PLASTER","H2",0]
[]
[3,9,105,null,"Cement plaster trowelled smooth on brickwork ","H3",0]
[]
[3,9,105,4,"On walls","m2",620,null,{"v":0,"d":"0.00"}]
[]
[3,9,105,null,"EXTERNAL PLASTER","H2",0]
[]
[3,9,106,null,"Cement plaster trowelled smooth on brickwork ","H3",0]
[]
[3,9,106,5,"On walls","m2",513,null,{"v":0,"d":"0.00"}]
[]
[3,9,{"$nulls":4},0,null,{"$f":"SUM(I1224:I1247)","v":{"v":0,"d":"0.00"}}]
[]
[3,10,108,null,"SECTION No. 3","H1",0]
[]
[3,10,108,null,"BILL No. 10 : TILING","H1",0]
[]
[3,10,108,null,"MODEL PREAMBLES","H2",0]
[]
[3,10,108,null,"The tenderer is referred to the \"Model Preambles for Trades 2008\" for supplementary and comprehensive expansion of descriptions, appropriate provision for which shall be deemed to have been included in all relevant rates",null,0]
[]
[3,10,108,null,"TILING","H2",0]
[]
[3,10,108,null,"(CPAP WORK GROUP NO. 144 UNLESS OTHERWISE STATED)","H2",0]
[]
[3,10,108,null,"Ceramic tiles to match existing","H3",0]
[]
[3,10,108,1,"300 x 300mm Ceramic tiles laid with approved adhesive and grout to match existing on floors in patches","m2",5,null,{"v":0,"d":"0.00"}]
[]
[3,10,{"$nulls":4},0,null,{"$f":"SUM(I1263:I1265)","v":{"v":0,"d":"0.00"}}]
[]
[3,11,109,null,"SECTION No. 3","H1",0]
[]
[3,11,109,null,"BILL No. 11 : PLUMBING AND DRAINAGE","H1",0]
[]
[3,11,109,null,"MODEL PREAMBLES","H2",0]
[]
[3,11,109,null,"The tenderer is referred to the \"Model Preambles for Trades 2008\" for supplementary and comprehensive expansion of descriptions, appropriate provision for which shall be deemed to have been included in all relevant rates",null,0]
[]
[3,11,109,null,"PLUMBING AND DRAINAGE","H2",0]
[]
[3,11,109,null,"(CPAP WORK GROUP NO. 148 UNLESS OTHERWISE STATED)","H2",0]
[]
[3,11,109,null,"RAINWATER DISPOSAL","H2",0]
[]
[3,11,109,null,"Seamless aluminium","H3",0]
[]
[3,11,109,1,"150 x 150mm Box gutters with white baked enamel finish fixed with concealed brackets","m",504,null,{"$f":"+G1284*H1284","v":{"v":0,"d":"0.00"}}]
[]
[3,11,110,2," 100 x 76mm Fluted aluminium downpipes with white baked enamel finish","m",124,null,{"v":0,"d":"0.00"}]
[]
[3,11,110,3,"Extra over eaves gutter for stopped end","No",54,null,{"v":0,"d":"0.00"}]
[]
[3,11,110,4,"Extra over eaves gutter for angle","No",4,null,{"v":0,"d":"0.00"}]
[]
[3,11,110,5,"Extra over eaves gutter for drop box suitable for 150 x 150mm box gutter","No",35,null,{"v":0,"d":"0.00"}]
[]
[3,11,110,6,"Extra over rainwater downpipe for bends","No",76,null,{"v":0,"d":"0.00"}]
[]
[3,11,110,7,"Extra over rainwater downpipe for shoes","No",5,null,{"v":0,"d":"0.00"}]
[]
[3,11,111,null,"Approved water storage tanks","H3",0]
[]
[3,11,111,8,"5 000 Litre Vertical polyethylene water storage tank complete, fitted with and including 20mm HD ball valve and 90 deg HDPE spout and setting in position on concrete tank stand (elsewhere measured) and tying down with 4mm diameter galvanised wire looped through 15mm hose enclosed steel link chain and secured to each corner of tank stand with a Y10 reinforcing rod twice bent and cast into concrete","No",18,null,{"v":0,"d":"0.00"}]
[]
[3,11,111,9,"2 500 Litre Vertical polyethylene water storage tank complete, fitted with and including 20mm plastic ball valve and 90 deg HDPE Spout suitable for padlocking and setting in position on concrete tank stand (elsewhere measured) and tying down with 4mm diameter galvanised wire looped through 15mm hose enclosed steel link chain and secured to each corner of tank stand with a Y10 reinforcing rod twice bent and cast into concrete","No",8,null,{"v":0,"d":"0.00"}]
[]
[3,11,111,10,"Hole through top of tank lid for 75mm diameter rainwater pipe","No",26,null,{"v":0,"d":"0.00"}]
[]
[3,11,111,null,"SANITARY PLUMBING","H2",0]
[]
[3,11,112,null,"uPVC pipes","H3",0]
[]
[3,11,112,11,"110mm Vent pipes ","m",105,null,{"v":0,"d":"0.00"}]
[]
[3,11,112,null,"Extra over uPVC pipes for fittings","H3",0]
[]
[3,11,112,12,"110mm Vent valve with and including shade cloth protection over opening","No",30,null,{"v":0,"d":"0.00"}]
[]
[3,11,112,null,"SANITARY FITTINGS","H2",0]
[]
[3,11,112,null,"Heavy Duty Plastic Sanitary fittings","H3",0]
[]
[3,11,112,13,"VIP 200 Pedestal c/w flap & incorporated seat including setting in 20MPa non shrink cementitious grout base 750 x 750 x 75mm thick","No",30,null,{"v":0,"d":"0.00"}]
[]
[3,11,112,14,"Wash Hand Basin with galvanised brackets and fittings, fixed to brickwork","No",14,null,{"v":0,"d":"0.00"}]
[]
[3,11,113,null,"SANS approved","H3",0]
[]
[3,11,113,15,"HD double flap PVC toilet seal fixed to pit latrine","No",8,null,{"v":0,"d":"0.00"}]
[]
[3,11,{"$nulls":4},0,null,{"$f":"SUM(I1283:I1327)","v":{"v":0,"d":"0.00"}}]
[]
[3,12,115,null,"SECTION No. 3","H1",0]
[]
[3,12,115,null,"BILL No. 12 : GLAZING","H1",0]
[]
[3,12,115,null,"MODEL PREAMBLES","H2",0]
[]
[3,12,115,null,"The tenderer is referred to the \"Model Preambles for Trades 2008\" for supplementary and comprehensive expansion of descriptions, appropriate provision for which shall be deemed to have been included in all relevant rates",null,0]
[]
[3,12,115,null,"GLAZING","H2",0]
[]
[3,12,115,null,"(CPAP WORK GROUP NO. 150 UNLESS OTHERWISE STATED)","H2",0]
[]
[3,12,115,null,"GLAZING TO STEEL WITH PUTTY","H2",0]
[]
[3,12,115,null,"6mm toughened clear safety glass secured into galvanized window with a compatible UV resistant sealant","H3",0]
[]
[3,12,115,1,"Panes exceeding 0,1m2 and not exceeding 0,5m2","m2",26,null,{"$f":"+G1346*H1346","v":{"v":0,"d":"0.00"}}]
[]
[3,12,115,2,"Issue of Glazing Certificate.","Item",1,null,{"v":0,"d":"0.00"}]
[]
[3,12,{"$nulls":4},0,null,{"$f":"SUM(I1345:I1349)","v":{"v":0,"d":"0.00"}}]
[]
[3,13,116,null,"SECTION No. 3","H1",0]
[]
[3,13,116,null,"BILL No. 13 : PAINTWORK","H1",0]
[]
[3,13,116,null,"MODEL PREAMBLES","H2",0]
[]
[3,13,116,null,"The tenderer is referred to the \"Model Preambles for Trades 2008\" for supplementary and comprehensive expansion of descriptions, appropriate provision for which shall be deemed to have been included in all relevant rates",null,0]
[]
[3,13,116,null,"SUPPLEMENTARY PREAMBLES","H2",0]
[]
[3,13,116,null,"Trade Names","H3",0]
[]
[3,13,116,null,"Where trade names are specified it will read \"or equal approved\"",null,0]
[]
[3,13,116,null,"(CPAP WORK GROUP NO. 152 UNLESS OTHERWISE STATED)","H2",0]
[]
[3,13,116,null,"PAINTWORK TO PREVIOUSLY PAINTED WORK","H2",0]
[]
[3,13,116,null,"ON FLOATED PLASTER","H2",0]
[]
[3,13,117,null,"Prepare and brush surface to remove all loose contaminants and apply one coat plaster primer and two coats approved emulsion paint for interior use","H3",0]
[]
[3,13,117,1,"On internal walls","m2",1948,null,{"v":0,"d":"0.00"}]
[]
[3,13,117,null,"Prepare and brush surface to remove all loose contaminants and apply one coat plaster primer and two coats polyurethane enamel or equally approved paint for interior use","H3",0]
[]
[3,13,117,2,"On internal walls","m2",253,null,{"v":0,"d":"0.00"}]
[]
[3,13,117,null,"Prepare and brush surface to remove all loose contaminants and apply one coat alkali resistant primer, and two coats approved emulsion paint for external use","H3",0]
[]
[3,13,117,3,"On external walls","m2",1468,null,{"v":0,"d":"0.00"}]
[]
[3,13,117,null,"ON WOOD","H2",0]
[]
[3,13,118,null,"Prepare and brush surface to remove all loose contaminants and apply two coats approved carbolineum anti-corrosive coal tar paint","H3",0]
[]
[3,13,118,4,"On roof timbers at eaves and verges","m2",110,null,{"v":0,"d":"0.00"}]
[]
[3,13,118,null,"Prepare, brush surface to remove all loose contaminants, stain and apply one coat sanding sealer  and three coats wood preservativeor equal approved preservative strictly in accordance with the Manufacturer's instructions","H3",0]
[]
[3,13,118,5,"On door ","m2",23,null,{"v":0,"d":"0.00"}]
[]
[3,13,118,null,"ON METAL","H2",0]
[]
[3,13,118,null,"Prepare and brush surface to remove all loose contaminants and apply one coat galvanized iron primer, one universal undercoat and two coats super enamel paint","H3",0]
[]
[3,13,118,6,"On door frames","m2",7,null,{"v":0,"d":"0.00"}]
[]
[3,13,118,null,"PAINTWORK TO NEW WORK","H2",0]
[]
[3,13,118,null,"ON FLOATED PLASTER","H2",0]
[]
[3,13,119,null,"Prepare and brush surface to remove all loose contaminants and apply one coat plaster primer and two coats polyurethane enamel or equally approved paint for interior use","H3",0]
[]
[3,13,119,7,"On internal walls","m2",465,null,{"$f":"+G1406*H1406","v":{"v":0,"d":"0.00"}}]
[]
[3,13,119,null,"Prepare and brush surface to remove all loose contaminants and apply one coat alkali resistant primer, one undercoat and two coats PVA emulsion paint for external use","H3",0]
[]
[3,13,119,8,"On walls","m2",313,null,{"v":0,"d":"0.00"}]
[]
[3,13,119,null,"ON FIBRE CEMENT","H2",0]
[]
[3,13,119,null,"Prepare and brush surface to remove loose contaminants and apply one coat plaster primer and two coats or equal approved emulsion paint for external use","H3",0]
[]
[3,13,119,9,"On fascias & barge boards","m2",174,null,{"v":0,"d":"0.00"}]
[]
[3,13,119,null,"ON PLASTER BOARD","H2",0]
[]
[3,13,120,null,"Prepare, brush surface to remove all loose contaminants and apply one coat approved alkali resistant primer, and two coats approved super acrylic PVA Colour: White","H3",0]
[]
[3,13,120,10,"On ceilings and cornices","m2",1520,null,{"v":0,"d":"0.00"}]
[]
[3,13,120,null,"ON WOOD","H2",0]
[]
[3,13,120,null,"Prepare and brush surface to remove all loose contaminants and apply two coats approved carbolineum anti-corrosive coal tar paint","H3",0]
[]
[3,13,120,11,"On roof timbers at eaves and verges","m2",464,null,{"v":0,"d":"0.00"}]
[]
[3,13,120,null,"Prepare, brush surface to remove all loose contaminants, stain and apply one coat sanding sealer and three coats wood preservative or equal approved strictly in accordance with the Manufacturer's instructions","H3",0]
[]
[3,13,120,12,"On doors","m2",132,null,{"v":0,"d":"0.00"}]
[]
[3,13,120,null,"ON METAL","H2",0]
[]
[3,13,121,null,"Prepare and brush surface to remove all loose contaminants and apply one coat galvanized iron primer, one universal undercoat and two coats super enamel paint","H3",0]
[]
[3,13,121,13,"On door frames","m2",55,null,{"v":0,"d":"0.00"}]
[]
[3,13,{"$nulls":4},0,null,{"$f":"SUM(I1373:I1439)","v":{"v":0,"d":"0.00"}}]
[]
[{"$nulls":4},"SECTION SUMMARY"]
[]
[3,14,123,1,"Earthworks","Page 57",null,null,{"$f":"+I630","v":{"v":0,"d":"0.00"}}]
[]
[3,14,123,2,"Concrete, Formwork, & Reinforcement","Page 62",null,null,{"$f":"+I710","v":{"v":0,"d":"0.00"}}]
[]
[3,14,123,3,"Masonry","Page 68",null,null,{"$f":"+I802","v":{"v":0,"d":"0.00"}}]
[]
[3,14,123,4,"Roof Coverings","Page 76",null,null,{"$f":"+I886","v":{"v":0,"d":"0.00"}}]
[]
[3,14,123,5,"Carpentry & Joinery","Page 89",null,null,{"$f":"+I1032","v":{"v":0,"d":"0.00"}}]
[]
[3,14,123,6,"Ceilings & Partitions","Page 92",null,null,{"$f":"+I1074","v":{"v":0,"d":"0.00"}}]
[]
[3,14,123,7,"Ironmongery","Page 97",null,null,{"$f":"+I1138","v":{"v":0,"d":"0.00"}}]
[]
[3,14,123,8,"Metalwork","Page 103",null,null,{"$f":"+I1208","v":{"v":130000,"d":"130,000.00"}}]
[]
[3,14,123,9,"Plastering","Page 107",null,null,{"$f":"+I1248","v":{"v":0,"d":"0.00"}}]
[]
[3,14,123,10,"Tiling","Page 108",null,null,{"$f":"+I1266","v":{"v":0,"d":"0.00"}}]
[]
[3,14,123,11,"Plumbing & Drainage","Page 114",null,null,{"$f":"+I1328","v":{"v":0,"d":"0.00"}}]
[]
[3,14,123,12,"Glazing","Page 115",null,null,{"$f":"+I1350","v":{"v":0,"d":"0.00"}}]
[]
[3,14,123,13,"Paintwork","Page 122",null,null,{"$f":"+I1440","v":{"v":0,"d":"0.00"}}]
[]
[{"$nulls":4},"SECTION SUMMARY SUB-TOTAL",{"$nulls":3},{"$f":"SUM(I1444:I1469)","v":{"v":130000,"d":"130,000.00"}}]
[]
[]
[4,1,124,null,"SECTION No. 4","H1",0]
[]
[4,1,124,null,"BILL No. 1 : EARTHWORKS","H1",0]
[]
[4,1,124,null,"EXCAVATION, FILLING, ETC OTHER THAN BULK","H2",0]
[]
[4,1,124,null,"Earth berm","H3",0]
[]
[4,1,124,1,"Create earth berm for stormwater control with in situ material 1,5m wide at base x 500mm high","m",50,null,{"$f":"+G1481*H1481","v":{"v":0,"d":"0.00"}}]
[]
[4,1,124,null,"Headwall","H3",0]
[]
[4,1,124,2,"Construct headwall outlet (comprising of 630 x 200 x 4300mm long reinforced ref. 245 concrete footing with 1000mm high 230mm brick-wall including all form-work, excavation, filling, ramming, soil poisoning) for storm water from above v-drain elsewhere measured, as per drawing.","No",2,null,{"v":0,"d":"0.00"}]
[]
[4,1,124,null,"Soak Away","H3",0]
[]
[4,1,124,3,"Excavate for and create 15sqm of 300mm thick gabion/reno mattress (as per drawing)","No",2,null,{"v":0,"d":"0.00"}]
[]
[4,1,{"$nulls":4},0,null,{"$f":"SUM(I1480:I1490)","v":{"v":0,"d":"0.00"}}]
[]
[4,2,125,null,"SECTION No. 4","H1",0]
[]
[4,2,125,null,"BILL NO. 2 PAVINGS AND ASSEMBLY AREAS","H1",0]
[]
[4,2,125,null,"PAVINGS AND ASSEMBLY AREAS","H1",0]
[]
[4,2,125,null,"CPA WORK GROUP","H2",0]
[]
[4,2,125,null,"Unless otherwise stated all items in this bill will be Work Group 154",null,0]
[]
[4,2,125,null,"REMOVAL OF EXISTING WORK","H2",0]
[]
[4,2,125,null,"Break up and Remove","H3",0]
[]
[4,2,125,1,"100mm thick existing paving","m2",200,null,{"v":0,"d":"0.00"}]
[]
[4,2,125,null,"EXCAVATION, FILLING, ETC","H2",0]
[]
[4,2,125,null,"Open face excavation over sloping site","H3",0]
[]
[4,2,125,2,"Open face excavation to form platform under paving areas etc and depositing excavated material over site including haulage not exceeding 1km from perimeter of excavations","m3",60,null,{"v":0,"d":"0.00"}]
[]
[4,2,125,null,"Extra over all excavations for carting away","H3",0]
[]
[4,2,125,3,"Surplus material from stock piles on site to a dumping site to be located by the contractor","m3",30,null,{"v":0,"d":"0.00"}]
[]
[4,2,125,null,"Keeping excavations free of water","H3",0]
[]
[4,2,125,4,"Keeping excavations free of all water other than subterranean water","Item",1,null,{"v":0,"d":"0.00"}]
[]
[4,2,125,null,"FILLING, ETC","H2",0]
[]
[4,2,125,null,"Earth filling supplied by the contractor under pavings etc","H3",0]
[]
[4,2,125,5,"Under floors, steps, pavings, footings, etc.","m3",20,null,{"v":0,"d":"0.00"}]
[]
[4,2,126,null,"Coarse river sand filling supplied by the contractor:","H3",0]
[]
[4,2,126,6,"Under floors etc. (Provisional).","m3",10,null,{"v":0,"d":"0.00"}]
[]
[4,2,126,null,"Compaction of surfaces","H3",0]
[]
[4,2,126,7,"Compaction of ground surface under parking or paving areas etc including scarifying for a depth of 150mm, breaking down oversize material, adding suitable material where necessary and compacting to 97% Mod AASHTO density","m2",200,null,{"$f":"+G1535*H1535","v":{"v":0,"d":"0.00"}}]
[]
[4,2,126,null,"Prescribed density tests on filling","H3",0]
[]
[4,2,126,8,"Maximum dry density and optimum moisture content test in accordance with method A7 of TMH 1","No",5,null,{"v":0,"d":"0.00"}]
[]
[4,2,126,null,"Waterproofing","H3",0]
[]
[4,2,126,null,"One layer of 250 micron USB Green waterproof sheeting sealed at laps with Pressure Sensitive Tape","H3",0]
[]
[4,2,126,9,"Under surface beds","m2",200,null,{"v":0,"d":"0.00"}]
[]
[4,2,126,null,"SOIL POISONING","H2",0]
[]
[4,2,126,null,"Weedkiller (active ingredients metalaclor 102,8 g/l, terbitilasien 248,6 g/l and atrasien 248,6 g/l) mixed in the proportion of 100 ml weedkiller to 100 l water and applied at a rate of 10 l/mý, inclusive of a written guarantee","H3",0]
[]
[4,2,126,10,"Under floors ","m2",200,null,{"v":0,"d":"0.00"}]
[]
[4,2,126,null,"STEEL REINFORCEMENT (PROVISIONAL)","H2",0]
[]
[4,2,126,null,"Fabric reinforcement","H3",0]
[]
[4,2,126,11,"Steel mesh reinforcement reference No. 193 in concrete slabs, etc. including all laps, bending, cutting, etc.  (Measured net).","m2",200,null,{"v":0,"d":"0.00"}]
[]
[4,2,127,null,"REINFORCED CONCRETE CAST AGAINST EXCAVATED SURFACES","H2",0]
[]
[4,2,127,null,"25MPa/19mm Concrete","H3",0]
[]
[4,2,127,12,"Surface beds cast in panels on waterproofing","m3",24,null,{"v":0,"d":"0.00"}]
[]
[4,2,127,null,"Finishing top surfaces of concrete with wood float finish","H3",0]
[]
[4,2,127,13,"Surface beds, slabs, etc","m2",200,null,{"v":0,"d":"0.00"}]
[]
[4,2,127,null,"Expansion joints with 10mm bitumen impregnated softboard between vertical concrete surfaces, including necessary formwork","H3",0]
[]
[4,2,127,14,"Not exceeding 300mm high through surface beds","m",200,null,{"v":0,"d":"0.00"}]
[]
[4,2,127,null,"ROUGH FORMWORK (DEGREE OF ACCURACY II)","H2",0]
[]
[4,2,127,null,"Rough formwork to sides","H3",0]
[]
[4,2,127,15,"Edges, risers, ends and reveals not exceeding 300mm high or wide","m",60,null,{"v":0,"d":"0.00"}]
[]
[4,2,{"$nulls":4},0,null,{"$f":"SUM(I1506:I1578)","v":{"v":0,"d":"0.00"}}]
[]
[{"$nulls":4},"SECTION No.4"]
[]
[4,3,129,null,"BILL No. 3 : V DRAINS & APRONS","H1",0]
[]
[4,3,129,null,"REMOVAL OF EXISTING WORK","H2",0]
[]
[4,3,129,null,"(CPAP WORK GROUP NO. 102 UNLESS OTHERWISE STATED)","H2",0]
[]
[4,3,129,null,"Break up and Remove","H3",0]
[]
[4,3,129,1,"100mm Thick surface bed in small areas","m2",16,null,{"v":0,"d":"0.00"}]
[]
[4,3,129,null,"SURFACE DRAINAGE","H2",0]
[]
[4,3,129,null,"Precast or in-situ Ref 193 mesh reinforced concrete (20MPa) open stormwater channels having V-shaped waterway formed in top, finished smooth on all exposed surfaces in 3:1 cement plaster trowelled smooth and with angles rounded, cast in suitable lengths not exceeding 3m, including all formwork, moulds, shallow excavation, filling and ramming, laying to falls, bedding and pointing in 3:1 cement mortar","H3",0]
[]
[4,3,129,2,"V- shaped concrete channel 600mm wide and 75mm thick concrete lining with wood finish on exposed surfaces laid to falls in panels not exceeding 1.80m long, with 12mm soft board movement joints including all excavations, form work, cart away as per drawing","m",637,null,{"$f":"+G1597*H1597","v":{"v":0,"d":"0.00"}}]
[]
[4,3,129,3,"V- shaped concrete channel 1000mm wide and 150mm thick concrete lining with wood finish on exposed surfaces laid to falls in panels not exceeding 1.80m long, with 12mm soft board movement joints including all excavations, form work, cart away as per drawing","m",150,null,{"v":0,"d":"0.00"}]
[]
[4,3,129,4,"Extra for 600mm angle","No",33,null,{"v":0,"d":"0.00"}]
[]
[4,3,129,5,"Extra for 600mm T-intersection","No",11,null,{"v":0,"d":"0.00"}]
[]
[4,3,129,6,"Extra for forming 150mm thick 600mm wide spreader fanning out to 2 600mm width at furthest end with cement grouted stone pitching cast in ass diffusers including working off concrete to a smooth finish","No",11,null,{"v":0,"d":"0.00"}]
[]
[4,3,130,7,"10mm Thick polystyrene joint forming material in expansion joint between concrete and concrete surfaces in narrow widths not exceeding 300mm high","m",532,null,{"v":0,"d":"0.00"}]
[]
[4,3,130,8,"Rake out 10mm wide expansion joint material for a depth of 10mm and point with UV and chemical resistant polysulphide sealant","m",532,null,{"v":0,"d":"0.00"}]
[]
[4,3,130,null,"SOIL POISONING","H2",0]
[]
[4,3,130,null,"Soil insecticide inclusive of a written guarantee","H3",0]
[]
[4,3,130,9,"Under floors etc including forming and poisoning shallow furrows against foundation walls etc, filling in furrows and ramming","m2",532,null,{"v":0,"d":"0.00"}]
[]
[4,3,130,null,"CONCRETE APRONS AND CLASS VERANDAH WALKWAYS","H2",0]
[]
[4,3,130,null,"EARTHWORKS","H2",0]
[]
[4,3,130,null,"SITE CLEARANCE ETC","H2",0]
[]
[4,3,130,null,"Site clearance","H3",0]
[]
[4,3,130,10,"Clear the area to be paved of all grass, roots, rubbish, etc. ","m2",181,null,{"v":0,"d":"0.00"}]
[]
[4,3,130,null,"EXCAVATION, FILLING, ETC OTHER THAN BULK","H2",0]
[]
[4,3,130,null,"Excavation in earth not exceeding 2m deep","H3",0]
[]
[4,3,130,11,"Excavate in natural ground to reduce levels beneath areas to be paved","m2",181,null,{"v":0,"d":"0.00"}]
[]
[4,3,130,null,"COMPACTION","H2",0]
[]
[4,3,130,null,"Compaction of surfaces","H3",0]
[]
[4,3,130,12,"Scarify in-situ material for a depth of 150mm and compact to obtain 95% Mod AASHTO dry density","m2",181,null,{"v":0,"d":"0.00"}]
[]
[4,3,131,null,"SOIL POISONING","H2",0]
[]
[4,3,131,null,"Soil insecticide inclusive of a written guarantee","H3",0]
[]
[4,3,131,13,"Under floors etc including forming and poisoning shallow furrows against foundation walls etc, filling in furrows and ramming","m2",181,null,{"v":0,"d":"0.00"}]
[]
[4,3,131,null,"CONCRETE, FORMWORK AND REINFORCEMENT","H2",0]
[]
[4,3,131,null,"REINFORCED CONCRETE","H2",0]
[]
[4,3,131,null,"25MPa/19mm Concrete","H3",0]
[]
[4,3,131,14,"Surface beds, slabs, etc to falls and currents","m3",18,null,{"v":0,"d":"0.00"}]
[]
[4,3,131,null,"CONCRETE SUNDRIES","H2",0]
[]
[4,3,131,null,"Finishing top surfaces of concrete with a woodfloat finish","H3",0]
[]
[4,3,131,15,"Surface beds laid in panels to falls and true non-slip wood float finish including slightly rounded edges to panels","m2",181,null,{"v":0,"d":"0.00"}]
[]
[4,3,131,null,"TEST BLOCKS","H2",0]
[]
[4,3,131,16,"Prepare a set of six concrete cubes each cube size 150 x 150 x 150mm for strength cubes and deliver to an approved laboratory for testing and pay all charges in connection therewith","No",2,null,{"$f":"+G1661*H1661","v":{"v":0,"d":"0.00"}}]
[]
[4,3,131,null,"ROUGH FORMWORK (DEGREE OF ACCURACY II)","H2",0]
[]
[4,3,131,null,"Rough formwork to sides","H3",0]
[]
[4,3,131,17,"Apron slabs, paving and ramps not exceeding 300mm high","m",296,null,{"v":0,"d":"0.00"}]
[]
[4,3,132,null,"Expansion joints with 10mm softboard between vertical concrete and brick surfaces","H3",0]
[]
[4,3,132,18,"10mm Joints not exceeding 300mm high","m",65,null,{"v":0,"d":"0.00"}]
[]
[4,3,132,null,"STEEL REINFORCEMENT (PROVISIONAL)","H2",0]
[]
[4,3,132,null,"Mesh reinforcement","H3",0]
[]
[4,3,132,19,"Ref 193 welded mesh fabric reinforcement cast into concrete pavings, etc","m2",181,null,{"v":0,"d":"0.00"}]
[]
[4,3,132,null,"WATERPROOFING","H2",0]
[]
[4,3,132,null,"JOINT SEALANTS, ETC","H2",0]
[]
[4,3,132,null,"SANS approved two-part grey polysulphide sealing compound (UV and chemical resistent) including backing chord, bond breaker, primer, etc","H3",0]
[]
[4,3,132,20,"Rake out 10mm wide expansion joint material for a depth of 10mm and point with polysulphide sealant","m",65,null,{"v":0,"d":"0.00"}]
[]
[4,3,{"$nulls":4},0,null,{"$f":"SUM(I1590:I1686)","v":{"v":0,"d":"0.00"}}]
[]
[4,4,134,null,"SECTION No. 4","H1",0]
[]
[4,4,134,null,"BILL No. 4 : TANK STANDS","H1",0]
[]
[4,4,134,null,"EXCAVATION, FILLING, ETC OTHER THAN BULK","H2",0]
[]
[4,4,134,null,"Excavation in earth not exceeding 2m deep","H3",0]
[]
[4,4,134,1,"Trenches","m3",99,null,{"v":0,"d":"0.00"}]
[]
[4,4,134,null,"Risk of collapse of excavations","H3",0]
[]
[4,4,134,2,"Sides of excavations not exceeding 1,5m deep","m2",299,null,{"v":0,"d":"0.00"}]
[]
[4,4,134,null,"Extra over all excavations for carting away","H3",0]
[]
[4,4,134,3,"Surplus material from excavations and/or stock piles on site to a dumping site to be located by the contractor","m3",56,null,{"v":0,"d":"0.00"}]
[]
[4,4,134,null,"Keeping excavations free of water","H3",0]
[]
[4,4,134,4,"Keeping excavations free of all water other than subterranean water","Item",1,null,{"v":0,"d":"0.00"}]
[]
[4,4,134,null,"Earth filling obtained from the excavations and/or prescribed stock piles on site compacted to 97% Mod AASHTO density","H3",0]
[]
[4,4,134,5,"Backfilling to trenches, holes","m3",48,null,{"v":0,"d":"0.00"}]
[]
[4,4,134,null,"Earth filling obtained from the excavations and/or prescribed stock piles on site compacted to 97% Mod AASHTO density","H3",0]
[]
[4,4,134,6,"Under floors, steps, pavings, etc","m3",17,null,{"v":0,"d":"0.00"}]
[]
[4,4,135,null,"Compaction of surfaces","H3",0]
[]
[4,4,135,7,"Compaction of ground surface under pavings etc including scarifying for a depth of 150mm, breaking down oversize material, adding suitable material where necessary and compacting to 98% Mod AASHTO density","m2",242,null,{"v":0,"d":"0.00"}]
[]
[4,4,135,null,"SOIL POISONING","H2",0]
[]
[4,4,135,null,"Soil insecticide inclusive of a written guarantee","H3",0]
[]
[4,4,135,8,"Under floors etc including forming and poisoning shallow furrows against foundation walls etc, filling in furrows and ramming","m2",546,null,{"$f":"+G1727*H1727","v":{"v":0,"d":"0.00"}}]
[]
[4,4,135,null,"CONCRETE, FORMWORK AND REINFORCEMENT","H2",0]
[]
[4,4,135,null,"UNREINFORCED CONCRETE CAST AGAINST EXCAVATED SURFACES","H2",0]
[]
[4,4,135,null,"25MPa/19mm Concrete","H3",0]
[]
[4,4,135,9,"Strip footings ","m3",33,null,{"v":0,"d":"0.00"}]
[]
[4,4,135,null,"REINFORCED CONCRETE","H2",0]
[]
[4,4,135,null,"25MPa/19mm Concrete","H3",0]
[]
[4,4,135,10,"Surface beds cast in panels","m3",17,null,{"v":0,"d":"0.00"}]
[]
[4,4,135,null,"CONCRETE SUNDRIES","H2",0]
[]
[4,4,135,null,"Finishing top surfaces of concrete with a woodfloat finish","H3",0]
[]
[4,4,135,11,"Surface beds, slabs, etc","m2",111,null,{"v":0,"d":"0.00"}]
[]
[4,4,136,null,"TEST BLOCKS","H2",0]
[]
[4,4,136,12,"Making and testing set of three 150 x 150 x 150mm concrete strength test cube (Provisional)","No",7,null,{"v":0,"d":"0.00"}]
[]
[4,4,136,null,"STEEL REINFORCEMENT (PROVISIONAL)","H2",0]
[]
[4,4,136,null,"Mesh reinforcement","H3",0]
[]
[4,4,136,13,"Steel mesh reinforcement reference No. 193 in concrete slabs, etc. including all laps, bending, cutting, etc.  (Measured net).","m2",242,null,{"v":0,"d":"0.00"}]
[]
[4,4,136,null,"BRICKWORK","H2",0]
[]
[4,4,136,null,"Clay bricks in class I mortar","H3",0]
[]
[4,4,136,null,"Brickwork of NFX bricks (14 MPa nominal compressive strength) in class I mortar","H3",0]
[]
[4,4,136,14,"One brick walls","m2",118,null,{"v":0,"d":"0.00"}]
[]
[4,4,136,null,"SUPERSTRUCTURE","H2",0]
[]
[4,4,136,null,"Brickwork of NFP bricks (14 MPa nominal compressive strength) in class I mortar","H3",0]
[]
[4,4,136,15,"One brick walls","m2",103,null,{"v":0,"d":"0.00"}]
[]
[4,4,136,null,"BRICKWORK SUNDRIES","H2",0]
[]
[4,4,136,null,"Bagging of 1:3 cement and sand mixture","H3",0]
[]
[4,4,136,16,"On brick walls, piers, etc.","m2",221,null,{"v":0,"d":"0.00"}]
[]
[4,4,136,null,"Brickwork reinforcement","H3",0]
[]
[4,4,136,17,"150mm Wide reinforcement built in horizontally","m",1001,null,{"v":0,"d":"0.00"}]
[]
[4,4,136,null,"FACE BRICKWORK ","H2",0]
[]
[4,4,137,null,"Face bricks pointed with flush horizontal and vertical joints","H3",0]
[]
[4,4,137,18,"Extra over for face brickwork","m",103,null,{"v":0,"d":"0.00"}]
[]
[4,4,137,null,"Brick-on-edge header course copings, sills, etc  face bricks pointed with recessed joints on all exposed faces","H3",0]
[]
[4,4,137,19,"Extra over brickwork for brick-on-edge header course ","m",200,null,{"$f":"+G1791*H1791","v":{"v":0,"d":"0.00"}}]
[]
[4,4,137,null,"METALWORK","H2",0]
[]
[4,4,137,null,"Sundry items","H3",0]
[]
[4,4,137,20,"30mm Approved brass padlock","No",26,null,{"v":0,"d":"0.00"}]
[]
[4,4,137,null,"PLUMBING AND DRAINAGE","H2",0]
[]
[4,4,137,null,"Polycop","H3",0]
[]
[4,4,137,21,"15mm Pipe fixed to wall with and including proprietary brackets","m",38,null,{"v":0,"d":"0.00"}]
[]
[4,4,137,22,"Extra on polycop piping for 15mm fittings","No",50,null,{"v":0,"d":"0.00"}]
[]
[4,4,137,null,"PAINTWORK ETC TO NEW WORK","H2",0]
[]
[4,4,137,null,"ON BRICK SURFACES","H2",0]
[]
[4,4,137,null,"Clean down with spirits of salts solution and apply two coats silicone-based brick dressing on: ","H3",0]
[]
[4,4,137,23,"On facings (Externally).","m2",103,null,{"v":0,"d":"0.00"}]
[]
[4,4,{"$nulls":4},0,null,{"$f":"SUM(I1696:I1814)","v":{"v":0,"d":"0.00"}}]
[]
[4,5,139,null,"SECTION No.4","H1",0]
[]
[4,5,139,null,"BILL No. 5 : FENCING","H1",0]
[]
[4,5,139,null,"(CPAP WORK GROUP NO. 136 UNLESS OTHERWISE STATED)","H2",0]
[]
[4,5,139,null,"ALTERATIONS","H1",0]
[]
[4,5,139,null,"REMOVAL OF EXISTING WORK","H2",0]
[]
[4,5,139,null,"Dismantle/Taking out and set aside","H3",0]
[]
[4,5,139,1,"Re-attach bonnox fencing ","m",50,null,{"v":0,"d":"0.00"}]
[]
[4,5,{"$nulls":4},0,null,{"$f":"SUM(I1828:I1830)","v":{"v":0,"d":"0.00"}}]
[]
[{"$nulls":4},"SECTION SUMMARY"]
[]
[4,6,140,1,"Earthworks","Page 124",null,null,{"$f":"+I1491","v":{"v":0,"d":"0.00"}}]
[]
[4,6,140,2,"Pavings & Assemble Areas","Page 128",null,null,{"$f":"+I1579","v":{"v":0,"d":"0.00"}}]
[]
[4,6,140,3,"V Drains & Aprons","Page 133",null,null,{"$f":"+I1687","v":{"v":0,"d":"0.00"}}]
[]
[4,6,140,4,"Tank Stand","Page 138",null,null,{"$f":"+I1815","v":{"v":0,"d":"0.00"}}]
[]
[4,6,140,5,"Fencing","Page 139",null,null,{"$f":"+I1831","v":{"v":0,"d":"0.00"}}]
[]
[{"$nulls":4},"SECTION SUMMARY SUB-TOTAL",{"$nulls":3},{"$f":"SUM(I1835:I1844)","v":{"v":0,"d":"0.00"}}]
[]
[]
[5,1,141,null,"SECTION No. 5","H1",0]
[]
[5,1,141,null,"BILL No. 1 : ELECTRICAL INSTALLATION (PROVISIONAL)","H1",0]
[]
[5,1,141,null,"(CPAP WORK GROUP NO. 160 UNLESS OTHERWISE STATED)","H2",0]
[]
[5,1,141,null,"Tenderers are to note that the sum included in the amount column for this Section of the Bills of Quantities, should be the total of all priced items in the Electrical Installation, Bill of Quantities as attached.  Note: Tenderers are to include for all Preliminary and General costs of the electrical contractor, in the rates.",null,0]
[]
[5,1,141,null,"REPAIRS AND RENOVATIONS TO EXISTING BUILDINGS","H1",0]
[]
[5,1,141,null,"Repair / Replace the electrical installation in  Classrooms, Admin Blocks, Toilets, etc that is to be refurbished or non-compliant in terms of SANS 10142-1. Note that all asbestos roofs on building is to be removed and replaced. Necessary safety gear to be used when working in this environment.",null,0]
[]
[5,1,141,null,"The contractor is to Remove and replace existing Lighting fixtures, DB's and other outlets that are affected or non-compliant in terms of SANS codes. Rates to include removing and re-fixing existing fixtures to new positions where applicable. All installations to be made safe in terms of SANS 10142-1. ",null,0]
[]
[5,1,141,null,"P8000 Galvanised Trunking C/W enclosure",null,0]
[]
[5,1,141,1,"Supply","m",1050,null,{"$f":"+G1864*H1864","v":{"v":0,"d":"0.00"}}]
[]
[5,1,141,2,"Install","m",1050,null,{"v":0,"d":"0.00"}]
[]
[5,1,141,null,"20mm Conduit ",null,0]
[]
[5,1,142,3,"Supply","m",900,null,{"v":0,"d":"0.00"}]
[]
[5,1,142,4,"Install","m",900,null,{"v":0,"d":"0.00"}]
[]
[5,1,142,null,"20mm PVC round boxes complete with lids & mounting screws",null,0]
[]
[5,1,142,5,"Supply","No",590,null,{"v":0,"d":"0.00"}]
[]
[5,1,142,6,"Install","No",590,null,{"v":0,"d":"0.00"}]
[]
[5,1,142,null,"100 x 100 x 50 mm deep mounted  for isolators / SSO units",null,0]
[]
[5,1,142,7,"Supply","No",108,null,{"v":0,"d":"0.00"}]
[]
[5,1,142,8,"Install","No",108,null,{"v":0,"d":"0.00"}]
[]
[5,1,142,null,"100 x 50 x 50 mm deep mounted for light switches",null,0]
[]
[5,1,142,9,"Supply","No",89,null,{"v":0,"d":"0.00"}]
[]
[5,1,142,10,"Install","No",89,null,{"v":0,"d":"0.00"}]
[]
[5,1,142,null,"32mm bosal conduit",null,0]
[]
[5,1,142,11,"Supply","No",600,null,{"v":0,"d":"0.00"}]
[]
[5,1,142,12,"Install","No",600,null,{"v":0,"d":"0.00"}]
[]
[5,1,142,null,"1,5 mm² (Live)",null,0]
[]
[5,1,142,13,"Supply","m",1200,null,{"v":0,"d":"0.00"}]
[]
[5,1,142,14,"Install","m",1200,null,{"v":0,"d":"0.00"}]
[]
[5,1,142,null,"1,5 mm² (Neutral)",null,0]
[]
[5,1,142,15,"Supply","m",1200,null,{"v":0,"d":"0.00"}]
[]
[5,1,142,16,"Install","m",1200,null,{"v":0,"d":"0.00"}]
[]
[5,1,143,null,"2,5 mm² (Earth)",null,0]
[]
[5,1,143,17,"Supply","m",1500,null,{"v":0,"d":"0.00"}]
[]
[5,1,143,18,"Install","m",1500,null,{"v":0,"d":"0.00"}]
[]
[5,1,143,null,"2.5 mm² (Live)",null,0]
[]
[5,1,143,19,"Supply","m",1500,null,{"$f":"+G1918*H1918","v":{"v":0,"d":"0.00"}}]
[]
[5,1,143,20,"Install","m",1500,null,{"v":0,"d":"0.00"}]
[]
[5,1,143,null,"2.5 mm² (Neutral)",null,0]
[]
[5,1,143,21,"Supply","m",1500,null,{"v":0,"d":"0.00"}]
[]
[5,1,143,22,"Install","m",1500,null,{"v":0,"d":"0.00"}]
[]
[5,1,143,null,"2,5 mm² (Earth)",null,0]
[]
[5,1,143,23,"Supply","m",1500,null,{"v":0,"d":"0.00"}]
[]
[5,1,143,24,"Install","m",1500,null,{"v":0,"d":"0.00"}]
[]
[5,1,143,null,"4 mm² (Live)",null,0]
[]
[5,1,143,25,"Supply","m",800,null,{"v":0,"d":"0.00"}]
[]
[5,1,143,26,"Install","m",800,null,{"v":0,"d":"0.00"}]
[]
[5,1,143,null,"4 mm² (Neutral)",null,0]
[]
[5,1,143,27,"Supply","m",800,null,{"v":0,"d":"0.00"}]
[]
[5,1,143,28,"Install","m",800,null,{"v":0,"d":"0.00"}]
[]
[5,1,143,null,"2,5 mm² (Earth)",null,0]
[]
[5,1,143,29,"Supply","m",800,null,{"v":0,"d":"0.00"}]
[]
[5,1,143,30,"Install","m",800,null,{"v":0,"d":"0.00"}]
[]
[5,1,144,null,"TYPE A 1500mm (5ft) Surface mounted, open channel fluorescent luminaire. Metal Body. 2 x T5 fluorescent lamps complete with electronic control gear and telescopic ends. Minimum 8750 Lumens. 2 x 35W Cool White. Colour white or as per Architect",null,0]
[]
[5,1,144,31,"Supply","No",124,null,{"v":0,"d":"0.00"}]
[]
[5,1,144,32,"Install","No",124,null,{"v":0,"d":"0.00"}]
[]
[5,1,144,null,"TYPE B",null,0]
[]
[5,1,144,null,"Wall mounted die-cast aluminium body with glass diffuser. IP 65, Corrosion and vandal resistant luminaire, complete with 2 x CFL lamp, electronic control gear and all necessary accessories. All external bolts to be stainless steel. Minimum 2400 lm.2 x 11W Cool White. Colour black or as per Architect",null,0]
[]
[5,1,144,33,"Supply","No",97,null,{"v":0,"d":"0.00"}]
[]
[5,1,144,34,"Install","No",97,null,{"v":0,"d":"0.00"}]
[]
[5,1,144,null,"TYPE C",null,0]
[]
[5,1,144,null,"Ceiling/Wall mounted high pressure die-cast aluminium base with opal high-impact acrylic diffuser. Minimum IP 65, Corrosion and vandal resistant luminaire complete with 2x CFL lamps, electronic control gear and all necessary accessories. All external bolts to be stainless steel. Minimum 2400lm.2 x 11W Cool White. Colour black or as per Architect",null,0]
[]
[5,1,144,35,"Supply","No",20,null,{"v":0,"d":"0.00"}]
[]
[5,1,144,36,"Install","No",20,null,{"v":0,"d":"0.00"}]
[]
[5,1,144,null,"230V, 11W ES/BC Compact fluorescent lamps colour cool white",null,0]
[]
[5,1,145,37,"Supply","No",4,null,{"v":0,"d":"0.00"}]
[]
[5,1,145,38,"Install","No",4,null,{"v":0,"d":"0.00"}]
[]
[5,1,145,null,"230V, 1500mm T5 fluorescent tubes colour cool white",null,0]
[]
[5,1,145,39,"Supply","No",4,null,{"$f":"+G1982*H1982","v":{"v":0,"d":"0.00"}}]
[]
[5,1,145,40,"Install","No",4,null,{"v":0,"d":"0.00"}]
[]
[5,1,145,null,"Administration Block Alarm System including connection cables",null,0]
[]
[5,1,145,41,"Supply","No",2,null,{"v":0,"d":"0.00"}]
[]
[5,1,145,42,"Install","No",2,null,{"v":0,"d":"0.00"}]
[]
[5,1,145,null,"200W Low noise wall mounted electric fan",null,0]
[]
[5,1,145,43,"Supply","No",8,null,{"v":0,"d":"0.00"}]
[]
[5,1,145,44,"Install","No",8,null,{"v":0,"d":"0.00"}]
[]
[5,1,145,null,"Telephone Distribution Board",null,0]
[]
[5,1,145,45,"Supply","No",2,null,{"v":0,"d":"0.00"}]
[]
[5,1,145,46,"Install","No",2,null,{"v":0,"d":"0.00"}]
[]
[5,1,145,null,"School Siren and Push Button with Latch in Timer",null,0]
[]
[5,1,145,47,"Supply","No",2,null,{"v":0,"d":"0.00"}]
[]
[5,1,145,48,"Install","No",2,null,{"v":0,"d":"0.00"}]
[]
[5,1,145,null,"50mm PVC Sleeve",null,0]
[]
[5,1,145,49,"Supply","No",100,null,{"v":0,"d":"0.00"}]
[]
[5,1,145,50,"Install","No",100,null,{"v":0,"d":"0.00"}]
[]
[5,1,146,null,"2-Compartment galvanised and painted power skirting. (Grey)",null,0]
[]
[5,1,146,51,"Supply","m",50,null,{"v":0,"d":"0.00"}]
[]
[5,1,146,52,"Install","m",50,null,{"v":0,"d":"0.00"}]
[]
[5,1,146,null,"Power skirting inside and Outside corners",null,0]
[]
[5,1,146,53,"Supply","m",50,null,{"v":0,"d":"0.00"}]
[]
[5,1,146,54,"Install","m",50,null,{"v":0,"d":"0.00"}]
[]
[5,1,146,null,"Power skirting end caps",null,0]
[]
[5,1,146,55,"Supply","m",10,null,{"v":0,"d":"0.00"}]
[]
[5,1,146,56,"Install","m",10,null,{"v":0,"d":"0.00"}]
[]
[5,1,146,null,"Power skirting Cover plates",null,0]
[]
[5,1,146,57,"Supply","m",10,null,{"v":0,"d":"0.00"}]
[]
[5,1,146,58,"Install","m",10,null,{"v":0,"d":"0.00"}]
[]
[5,1,146,null,"Power skirting conduit entry boxes",null,0]
[]
[5,1,146,59,"Supply","m",10,null,{"v":0,"d":"0.00"}]
[]
[5,1,146,60,"Install","m",10,null,{"v":0,"d":"0.00"}]
[]
[5,1,146,null,"3 Phase Distribution Board",null,0]
[]
[5,1,146,61,"Supply","No",1,null,{"$f":"+G2048*H2048","v":{"v":0,"d":"0.00"}}]
[]
[5,1,146,62,"Install","No",1,null,{"v":0,"d":"0.00"}]
[]
[5,1,146,null,"16-24 Way Surface Mounted Disribution Board",null,0]
[]
[5,1,146,63,"Supply","No",8,null,{"v":0,"d":"0.00"}]
[]
[5,1,147,64,"Install","No",8,null,{"v":0,"d":"0.00"}]
[]
[5,1,147,null,"15Amp single phase Circuit breaker",null,0]
[]
[5,1,147,65,"Supply","No",7,null,{"v":0,"d":"0.00"}]
[]
[5,1,147,66,"Install","No",7,null,{"v":0,"d":"0.00"}]
[]
[5,1,147,null,"20 Amp single phase Circuit breaker",null,0]
[]
[5,1,147,67,"Supply","No",13,null,{"v":0,"d":"0.00"}]
[]
[5,1,147,68,"Install","No",13,null,{"v":0,"d":"0.00"}]
[]
[5,1,147,null,"60 Amp double pole Earth Leakage Unit",null,0]
[]
[5,1,147,69,"Supply","No",5,null,{"v":0,"d":"0.00"}]
[]
[5,1,147,70,"Install","No",5,null,{"v":0,"d":"0.00"}]
[]
[5,1,147,null,"Class II 10kA single pole SPD unit",null,0]
[]
[5,1,147,71,"Supply","No",4,null,{"v":0,"d":"0.00"}]
[]
[5,1,147,72,"Install","No",4,null,{"v":0,"d":"0.00"}]
[]
[5,1,147,null,"Single Lever, one way switch",null,0]
[]
[5,1,147,73,"Supply","No",89,null,{"v":0,"d":"0.00"}]
[]
[5,1,147,74,"Install","No",89,null,{"v":0,"d":"0.00"}]
[]
[5,1,147,null,"IP65 Single lever switch",null,0]
[]
[5,1,147,75,"Supply","No",1,null,{"v":0,"d":"0.00"}]
[]
[5,1,147,76,"Install","No",1,null,{"v":0,"d":"0.00"}]
[]
[5,1,147,null,"Two Lever one way switch",null,0]
[]
[5,1,147,77,"Supply","No",6,null,{"v":0,"d":"0.00"}]
[]
[5,1,148,78,"Install","No",6,null,{"v":0,"d":"0.00"}]
[]
[5,1,148,null,"16 Amp 3 pin double SSO ZA Plug (White)",null,0]
[]
[5,1,148,79,"Supply","No",90,null,{"v":0,"d":"0.00"}]
[]
[5,1,148,80,"Install","No",90,null,{"v":0,"d":"0.00"}]
[]
[5,1,148,null,"16 Amp 3 pin Single (White)",null,0]
[]
[5,1,148,81,"Supply","No",20,null,{"v":0,"d":"0.00"}]
[]
[5,1,148,82,"Install","No",20,null,{"$f":"+G2110*H2110","v":{"v":0,"d":"0.00"}}]
[]
[5,1,148,null,"30 Amp 2 pole 230V",null,0]
[]
[5,1,148,83,"Supply","No",2,null,{"v":0,"d":"0.00"}]
[]
[5,1,148,84,"Install","No",2,null,{"v":0,"d":"0.00"}]
[]
[5,1,148,null,"Replace 10 Amp day light switch per SANS 1777",null,0]
[]
[5,1,148,85,"Supply","No",8,null,{"v":0,"d":"0.00"}]
[]
[5,1,148,86,"Install","No",8,null,{"v":0,"d":"0.00"}]
[]
[5,1,148,null,"8mm Diameter Aluminium lightning protection conductor. To include all holding down clamps, down conductors and bonding to earth rings",null,0]
[]
[5,1,148,87,"Supply","m",700,null,{"v":0,"d":"0.00"}]
[]
[5,1,148,88,"Install","m",700,null,{"v":0,"d":"0.00"}]
[]
[5,1,148,null,"Bond the metal roofs at each corner of the building bonded to the earth electrode in the ground. To include lugs, brass screws, nuts and washers",null,0]
[]
[5,1,148,89,"Supply","No",65,null,{"v":0,"d":"0.00"}]
[]
[5,1,149,90,"Install","No",65,null,{"v":0,"d":"0.00"}]
[]
[5,1,149,null,"Provide test joint points at 500mm AFGL at each down conductor location. The test joint shall comprise of two lugs and a 10mm galvanized steel bolt and nut enclosed in a suitable GRP enclosure",null,0]
[]
[5,1,149,91,"Supply","No",65,null,{"v":0,"d":"0.00"}]
[]
[5,1,149,92,"Install","No",65,null,{"v":0,"d":"0.00"}]
[]
[5,1,149,null,"50mm stranded BCEW down conductor in surface mounted PVC conduit complete with saddles",null,0]
[]
[5,1,149,93,"Supply","m",500,null,{"v":0,"d":"0.00"}]
[]
[5,1,149,94,"Install","m",500,null,{"v":0,"d":"0.00"}]
[]
[5,1,149,null,"1200mm x 16mm diameter Copper earth electrodes driven in ground, including 'Cadweld' joining sleeves as required",null,0]
[]
[5,1,149,95,"Supply","No",65,null,{"v":0,"d":"0.00"}]
[]
[5,1,149,96,"Install","No",65,null,{"v":0,"d":"0.00"}]
[]
[5,1,149,null,"6.0mm x 3 Core ECC",null,0]
[]
[5,1,149,97,"Supply","m",120,null,{"v":0,"d":"0.00"}]
[]
[5,1,149,98,"Install","m",120,null,{"v":0,"d":"0.00"}]
[]
[5,1,149,99,"Term","No",40,null,{"v":0,"d":"0.00"}]
[]
[5,1,149,null,"16.0mm 3 Core ECC",null,0]
[]
[5,1,149,100,"Supply","m",100,null,{"v":0,"d":"0.00"}]
[]
[5,1,149,101,"Install","m",100,null,{"v":0,"d":"0.00"}]
[]
[5,1,149,102,"Term","No",50,null,{"v":0,"d":"0.00"}]
[]
[5,1,150,null,"6.0mm 2 Core ECC",null,0]
[]
[5,1,150,103,"Supply","m",50,null,{"v":0,"d":"0.00"}]
[]
[5,1,150,104,"Install","m",50,null,{"$f":"+G2174*H2174","v":{"v":0,"d":"0.00"}}]
[]
[5,1,150,105,"Term","No",10,null,{"v":0,"d":"0.00"}]
[]
[5,1,150,null,"10.0mm 2 Core ECC",null,0]
[]
[5,1,150,106,"Supply","m",10,null,{"v":0,"d":"0.00"}]
[]
[5,1,150,107,"Install","m",10,null,{"v":0,"d":"0.00"}]
[]
[5,1,150,108,"Term","No",5,null,{"v":0,"d":"0.00"}]
[]
[5,1,150,null,"Trench Excavations including temporary support of sides, keeping excavation dry, bedding material, backfilling, compacting and testing as specified. All backfill material to be suitable as per SANS codes and engineers approval. Backfill material to be imported if necessary. Trench depth to be 800mm below finished ground level",null,0]
[]
[5,1,150,109,"In soft or pickable soil ","m3",40,null,{"v":0,"d":"0.00"}]
[]
[5,1,150,110,"Soft Rock ","m3",40,null,{"v":0,"d":"0.00"}]
[]
[5,1,150,111,"Hard Rock ","m3",40,null,{"v":0,"d":"0.00"}]
[]
[5,1,150,112,"Warning tape installed 500mm below ground level, above cables in trench","m",300,null,{"v":0,"d":"0.00"}]
[]
[5,1,150,null,"TESTING & COMMISSIONING",null,0]
[]
[5,1,150,113,"Test and commission complete installation as per SANS 10142-1","No",9,null,{"v":0,"d":"0.00"}]
[]
[5,1,150,114,"Provide Certificate of Compliance (CoC) as per SANS 10142-1. One for each DB","No",7,null,{"v":0,"d":"0.00"}]
[]
[5,1,151,115,"Provide Earthing certificate for each BLOCK, to include earth resistance test of each down conductor earth electrode, measured by an Earthing specialist by means of an approved instrument","No",7,null,{"v":0,"d":"0.00"}]
[]
[5,1,151,116,"Remove all redundant equipment, store and dispose at an approved dump site. A disposal certificate to be supplied","No",7,null,{"v":0,"d":"0.00"}]
[]
[5,1,151,117,"Allow for Municipal/Eskom Meter Connection","Item",1,null,{"v":50000,"d":"50,000.00"}]
[]
[5,1,151,null,"40 Amp Double pole single phase main circuit breaker into existing feeder DB",null,0]
[]
[5,1,151,118,"Supply","No",2,null,{"v":0,"d":"0.00"}]
[]
[5,1,151,119,"Install","No",2,null,{"v":0,"d":"0.00"}]
[]
[5,1,151,null,"16.0mm 3 Core ECC",null,0]
[]
[5,1,151,120,"Supply","m",50,null,{"v":0,"d":"0.00"}]
[]
[5,1,151,121,"Install","m",50,null,{"v":0,"d":"0.00"}]
[]
[5,1,151,122,"Term","No",5,null,{"v":0,"d":"0.00"}]
[]
[5,1,151,null,"Trench Excavations including temporary support of sides, keeping excavation dry, bedding material, backfilling, compacting and testing as specified. All backfill material to be suitable as per SANS codes and engineers approval. Backfill material to be imported if necessary. Trench depth to be 500mm below finished ground level",null,0]
[]
[5,1,151,123,"In soft or pickable soil ","m3",7,null,{"v":0,"d":"0.00"}]
[]
[5,1,151,124,"Soft Rock ","m3",7,null,{"v":0,"d":"0.00"}]
[]
[5,1,151,125,"Hard Rock ","m3",7,null,{"v":0,"d":"0.00"}]
[]
[5,1,152,126,"Warning tape installed 300mm below ground level, above cables in trench","m",50,null,{"v":0,"d":"0.00"}]
[]
[5,1,152,null,"TESTING & COMMISSIONING",null,0]
[]
[5,1,152,127,"Test and commission complete installation as per SANS 10142-1","No",2,null,{"v":0,"d":"0.00"}]
[]
[5,1,152,128,"Provide Certificate of Compliance (CoC) as per SANS 10142-1. One for each DB and one overall","No",2,null,{"v":0,"d":"0.00"}]
[]
[5,1,152,129,"Decommission, remove and make safe above cable installation upon removal of temporary accommodation","No",2,null,{"$f":"+G2238*H2238","v":{"v":0,"d":"0.00"}}]
[]
[5,1,{"$nulls":4},0,null,{"$f":"SUM(I1863:I2239)","v":{"v":50000,"d":"50,000.00"}}]
[]
[{"$nulls":4},"FINAL SUMMARY"]
[]
[6,1,154,1,"Preliminaries","Page 36",null,null,{"$f":"+I372","v":{"v":0,"d":"0.00"}}]
[]
[6,1,154,2,"Alterations (Provisional)","Page 53",null,null,{"$f":"+I562","v":{"v":0,"d":"0.00"}}]
[]
[6,1,154,3,"New Work to Existing Buildings (Provisional)","Page 123",null,null,{"$f":"+I1470","v":{"v":130000,"d":"130,000.00"}}]
[]
[6,1,154,4,"Siteworks (Provisional)","Page 140",null,null,{"$f":"+I1845","v":{"v":0,"d":"0.00"}}]
[]
[6,1,154,5,"Electrical Installation","Page 153",null,null,{"$f":"+I2240","v":{"v":50000,"d":"50,000.00"}}]
[]
[6,1,154,null,null,"Sub Total",null,null,{"$f":"SUM(I2244:I2253)","v":{"v":180000,"d":"R180,000.00"}}]
[]
[6,1,154,null,null,"Tax @ 15%",null,null,{"$f":"+I2254*15%","v":{"v":27000,"d":"R27,000.00"}}]
[]
[{"$nulls":5},"Tender Amount",null,null,{"$f":"SUM(I2254:I2257)","v":{"v":207000,"d":"R207,000.00"}}]